Workbook

Sheet Index
A1: Index and File Details
B3: Index | H3: File Details
B5: Inputs | D5: Calculations | F5: Outputs | I5: Model | J5: Transgrid | CWOREZ Non-Contestable Opex Forecast Model
I6: Author | J6: Transgrid
B7: Notes & Assumptions | D7: Calculations | F7: Outputs | I7: Revision | J7: 2025-07-24
B8: =Inputs!A1 -> Inputs | I8: Status | J8: Revenue Proposal
B12: Model Checks | H12: Instructions
B14: Worksheet | I14: Input Sheets
B15: =B7 -> Notes & Assumptions | D15: N/A | I15: Fill in any cells marked as input cells as seen on the right => | K15: user input
B16: =B8 -> Inputs | D16: N/A | I16: Historical / Not applicable
B17: =D7 -> Calculations | D17: =IF(SUM(Calculations!A2:A97)=0,0,1) -> 0 | I17: Cells not marked as inputs should not be modified.
B18: =F7 -> Outputs | D18: =IF(SUM(Outputs!A3:A121)=0,0,1) -> 0 | I18: Confidential information | K18: user input
B20: Total Error Check | D20: =IF(SUM(D15:D18)=0,0,1) -> 0
B22: End

Sheet Notes & Assumptions
A1: Assumptions & Notes
E3: User inputs in cells coloured like this
C4: * | E4: 1. Inputs and calculations are in $. Some outputs are $million.
C5: * | E5: 2. Financial years are recorded in the Opex Forecast Model as tax years (e.g. 2017/18 is shown as 2018, 2018/19 is shown as 2019)
C6: * | E6: 3. Escalation is treated as follows:
E7: a. CPI escalation and Commodity escalation are treated separately.
A10: Modifications
A11: Date | B11: Version | D11: Who | E11: Notes
A12: 2023-06-26 | B12: v1.1 | E12: Initial model development

Sheet Inputs
A1: Inputs
B4: Output Reporting Format and Year
B5: Real
B6: 2026 | C6: The Financial Year that results are reported in.
B8: =IF(Real_or_Nom="Real", "Real $" & Report_Year, "$ Nominal") -> Real $2026
B10: Indexation and escalation
B13: Forecasts | M13: Rates
B14: Item | C14: Source | D14: Units | M14: 2022 | N14: 2023 | O14: =N14+1 -> 2024 | P14: 2025 | Q14: 2026 | R14: 2027 | S14: 2028 | T14: 2029 | U14: =T14+1 -> 2030 | V14: =U14+1 -> 2031
B15: Actual / Forecast Inflation | C15: ABS / RBA / PTRM | D15: % | M15: 0.06144781145 | N15: 0.06026962728 | O15: 0.03814510097 | P15: 0.024 | Q15: 0.032 | R15: 0.02779809301 | S15: 0.02779809301 | T15: 0.02779809301 | U15: 0.02779809301 | V15: 0.02779809301 | X15: Note: Currently set to June to June unlagged for actual/estimates and PTRM for forecasts
B16: Real labour escalation | C16: Transgrid AER FD | D16: % | N16: -0.03470450337 | O16: 0.003904656476 | P16: 0.01307648255 | Q16: 0.01154643895 | R16: 0.004330457586 | S16: 0.003009413338 | T16: =AVERAGE($R$16:$S$16) -> 0.003669935462 | U16: =AVERAGE($R$16:$S$16) -> 0.003669935462 | V16: =AVERAGE($R$16:$S$16) -> 0.003669935462 | X16: Note: Based on Final Decision values applied to both the opex and capex models
B19: Cumulative factors | M19: Cumulative Factors
B20: Item | C20: Source | D20: Units | M20: =M$14 -> 2022 | N20: =N$14 -> 2023 | O20: =O$14 -> 2024 | P20: 2025 | Q20: 2026 | R20: 2027 | S20: 2028 | T20: 2029 | U20: 2030 | V20: 2031
B21: Nominal (mid year) to Real 2026 (end year) | C21: Calculated | D21: Factor | M21: =N21*(1+N15)^0.5*(1+M15)^0.5 -> 1.198404294 | N21: =O21*(1+O15)^0.5*(1+N15)^0.5 -> 1.129655115 | O21: =P21*(1+P15)^0.5*(1+O15)^0.5 -> 1.076734636 | P21: =Q21*(1+Q15)^0.5*(1+P15)^0.5 -> 1.044310574 | Q21: =(1+Q15)^0.5 -> 1.015874008 | R21: =Q21/(1+Q15)^0.5/(1+R15)^0.5 -> 0.9863841754 | S21: =R21/(1+R15)^0.5/(1+S15)^0.5 -> 0.9597061739 | T21: =S21/(1+S15)^0.5/(1+T15)^0.5 -> 0.9337497125 | U21: =T21/(1+T15)^0.5/(1+U15)^0.5 -> 0.9084952763 | V21: =U21/(1+U15)^0.5/(1+V15)^0.5 -> 0.8839238782 | X21: Note: this index converts from nominal mid year dollars for each year between 2021-22 to 2030-31 to dollars as at the end of 2025-26 (i.e., Real 2026, 30 June 2026).
B22: Nominal (end year) to Real 2026 (end year) | C22: Calculated | D22: Factor | M22: =N22*(1+N15) -> 1.163199036 | N22: =O22*(1+O15) -> 1.097078522 | O22: =P22*(1+P15) -> 1.056768 | P22: =Q22*(1+Q15) -> 1.032 | Q22: 1 | R22: =Q22/(1+R15) -> 0.9729537414 | S22: =R22/(1+S15) -> 0.9466389829 | T22: =S22/(1+T15) -> 0.9210359402 | U22: =T22/(1+U15) -> 0.896125364 | V22: =U22/(1+V15) -> 0.8718885256
B23: Labour escalation from 2024 | C23: Calculated | D23: Factor | O23: 1 | P23: =O23*(1+P16) -> 1.013076483 | Q23: 1.024773908 | R23: 1.029211648 | S23: 1.032308972 | T23: 1.036097479 | U23: 1.03989989 | V23: 1.043716255
B26: Opex forecast sensitivities
B28: Apply real labour escalation? | C28: Yes
B31: Maintenance expenditure
B33: Maintenance plan requirements | F33: Conversion | L33: Defect | Q33: Quantities | X33: ="Rates (Real $"&F35&")" -> Rates (Real $2026) | AB33: Note: unit rates are assumed to be in mid-year dollars
B34: Item | C34: Plan Component | D34: Maintenance Activity | F34: Dollar Year | G34: Escalation Year | H34: Timing | I34: Asset class | J34: Location | L34: Allowance (%) | Q34: =Q$20 -> 2026 | R34: 2027 | S34: 2028 | T34: 2029 | U34: 2030 | V34: 2031 | X34: Code | Y34: Labour | Z34: Materials
B35: Substations | F35: 2026 | G35: 2027 | H35: End
B36: Requirement 1 | C36: Automation | D36: [C-i-C] | I36: Line Protection | J36: Bayswater | L36: 1.22 | R36: 0 | S36: 0 | T36: 2 | U36: 2 | V36: 2 | X36: PARCL1 | Y36: 916.7608615 | Z36: 0
B37: Requirement 2 | C37: Automation | D37: [C-i-C] | I37: Line Protection | J37: Bayswater | L37: 1.22 | R37: 0 | S37: 0 | T37: 0 | U37: 0 | V37: 0 | X37: PDIFR1 | Y37: 3201.616492 | Z37: 41.28
B38: Requirement 3 | C38: Substations | D38: [C-i-C] | I38: 330kV LHCB SF6 | J38: Bayswater | L38: 1.37 | R38: 0 | S38: 0 | T38: 0 | U38: 2 | V38: 0 | X38: S0160B | Y38: 13038.2775 | Z38: 25.8
B39: Requirement 4 | C39: Substations | D39: [C-i-C] | I39: 330kV LHCB SF6 | J39: Bayswater | L39: 1.37 | R39: 0 | S39: 0 | T39: 0 | U39: 0 | V39: 0 | X39: S0160C | Y39: 7444.960429 | Z39: 25.8
B40: Requirement 5 | C40: Substations | D40: [C-i-C] | I40: Ancillary Bay Equipment | J40: Bayswater | L40: 1.37 | R40: 0 | S40: 0 | T40: 0 | U40: 2 | V40: 0 | X40: S0900B | Y40: 5359.879849 | Z40: 25.8
B41: Requirement 6 | C41: Substations | D41: [C-i-C] | I41: CT | J41: Bayswater | L41: 1.37 | R41: 0 | S41: 0 | T41: 0 | U41: 6 | V41: 0 | X41: S0955C | Y41: 1979.449354 | Z41: 22.704
B42: Requirement 7 | C42: Automation | D42: [C-i-C] | I42: Line Protection | J42: Barigan Creek | L42: 5.79 | R42: 0 | S42: 4 | T42: 4 | U42: 4 | V42: 4 | X42: PARCL1 | Y42: 916.7608615 | Z42: 0
B43: Requirement 8 | C43: Automation | D43: [C-i-C] | I43: Line Protection | J43: Barigan Creek | L43: 5.79 | R43: 0 | S43: 0 | T43: 8 | U43: 0 | V43: 0 | X43: PDIFR1 | Y43: 3201.616492 | Z43: 41.28
B44: Requirement 9 | C44: Automation | D44: [C-i-C] | I44: Disturbance and Fault | J44: Barigan Creek | L44: 5.79 | R44: 0 | S44: 4 | T44: 4 | U44: 4 | V44: 4 | X44: P3454C | Y44: 254.5261012 | Z44: 41.28
B45: Requirement 10 | C45: Communication | D45: [C-i-C] | I45: Data | J45: Barigan Creek | L45: 5.79 | R45: 0 | S45: 1 | T45: 1 | U45: 1 | V45: 1 | X45: CTG307 | Y45: 613.0806526 | Z45: 10.32
B46: Requirement 11 | C46: Communication | D46: [C-i-C] | I46: Inspections | J46: Barigan Creek | L46: 5.79 | R46: 0 | S46: 1.5 | T46: 1.5 | U46: 1.5 | V46: 1.5 | X46: CTG102 | Y46: 1141.15895 | Z46: 0
B47: Requirement 12 | C47: Communication | D47: [C-i-C] | I47: OPGW/UGFO | J47: Barigan Creek | L47: 5.79 | R47: 0 | S47: 2 | T47: 2 | U47: 2 | V47: 2 | X47: CFOIN1 | Y47: 1255.120424 | Z47: 10.32
B48: Requirement 13 | C48: Metering | D48: [C-i-C] | I48: CT | J48: Barigan Creek | L48: 5.79 | R48: 0 | S48: 0 | T48: 0 | U48: 0 | V48: 0 | X48: MCTAC1 | Y48: 5207.059157 | Z48: 0
B49: Requirement 14 | C49: Metering | D49: [C-i-C] | I49: CT | J49: Barigan Creek | L49: 5.79 | R49: 0 | S49: 0 | T49: 0 | U49: 0 | V49: 0 | X49: MCTBRD | Y49: 588.4365416 | Z49: 0
B50: Requirement 15 | C50: Metering | D50: [C-i-C] | I50: Meter | J50: Barigan Creek | L50: 5.79 | R50: 0 | S50: 0 | T50: 0 | U50: 0 | V50: 0 | X50: MCALC1 | Y50: 1420.442226 | Z50: 0
B51: Requirement 16 | C51: Metering | D51: [C-i-C] | I51: Meter | J51: Barigan Creek | L51: 5.79 | R51: 0 | S51: 0 | T51: 8 | U51: 0 | V51: 0 | X51: MINDC1 | Y51: 1301.146156 | Z51: 0
B52: Requirement 17 | C52: Metering | D52: [C-i-C] | I52: Meter | J52: Barigan Creek | L52: 5.79 | R52: 0 | S52: 0 | T52: 8 | U52: 0 | V52: 0 | X52: MINSP1 | Y52: 1574.730041 | Z52: 41.28
B53: Requirement 18 | C53: Metering | D53: [C-i-C] | I53: Meter | J53: Barigan Creek | L53: 0 | R53: 0 | S53: 8 | T53: 8 | U53: 8 | V53: 8 | X53: 0 | Y53: 0 | Z53: 1403.52
B54: Requirement 19 | C54: Metering | D54: [C-i-C] | I54: 0 | J54: Barigan Creek | L54: 5.79 | R54: 0 | S54: 0 | T54: 0 | U54: 0 | V54: 0 | X54: MVTAC3 | Y54: 6720.651143 | Z54: 20681.28
B55: Requirement 20 | C55: Metering | D55: [C-i-C] | I55: 0 | J55: Barigan Creek | L55: 5.79 | R55: 0 | S55: 0 | T55: 0 | U55: 0 | V55: 0 | X55: MVTBD1 | Y55: 879.5168237 | Z55: 41.28
B56: Requirement 21 | C56: Automation | D56: [C-i-C] | I56: Software | J56: Barigan Creek | L56: 0 | R56: 0 | S56: 1 | T56: 1 | U56: 1 | V56: 1 | X56: 0 | Y56: 0 | Z56: 17028
B57: Requirement 22 | C57: Automation | D57: [C-i-C] | I57: Line Protection | J57: Mount Piper 330kV and Wallerawang 330kV | L57: 1.22 | R57: 0 | S57: 0 | T57: 2 | U57: 2 | V57: 2 | X57: PARCL1 | Y57: 916.7608615 | Z57: 0
B58: Requirement 23 | C58: Automation | D58: [C-i-C] | I58: Line Protection | J58: Mount Piper 330kV and Wallerawang 330kV | L58: 1.22 | R58: 0 | S58: 0 | T58: 0 | U58: 0 | V58: 0 | X58: PDIFR1 | Y58: 3201.616492 | Z58: 41.28
B59: Requirement 24 | C59: Communication | D59: [C-i-C] | I59: OPGW/UGFO | J59: Mount Piper 330kV and Wallerawang 330kV | L59: 1.22 | R59: 0 | S59: 0 | T59: 2 | U59: 2 | V59: 2 | X59: CFOIN1 | Y59: 1255.120424 | Z59: 10.32
B60: Requirement 25 | C60: Substations | D60: [C-i-C] | I60: 330kV LHCB SF6 | J60: Mount Piper 330kV and Wallerawang 330kV | L60: 1.37 | R60: 0 | S60: 0 | T60: 0 | U60: 1 | V60: 0 | X60: S0160B | Y60: 13038.2775 | Z60: 25.8
B61: Requirement 26 | C61: Substations | D61: [C-i-C] | I61: 330kV LHCB SF6 | J61: Mount Piper 330kV and Wallerawang 330kV | L61: 1.37 | R61: 0 | S61: 0 | T61: 0 | U61: 0 | V61: 0 | X61: S0160C | Y61: 7444.960429 | Z61: 25.8
B62: Requirement 27 | C62: Substations | D62: [C-i-C] | I62: Ancillary Bay Equipment | J62: Mount Piper 330kV and Wallerawang 330kV | L62: 1.37 | R62: 0 | S62: 0 | T62: 0 | U62: 4 | V62: 0 | X62: S0900B | Y62: 5359.879849 | Z62: 25.8
B63: Requirement 28 | C63: Substations | D63: [C-i-C] | I63: CT | J63: Mount Piper 330kV and Wallerawang 330kV | L63: 1.37 | R63: 0 | S63: 0 | T63: 0 | U63: 6 | V63: 0 | X63: S0955C | Y63: 1979.449354 | Z63: 22.704
B64: Requirement 29
B65: Transmission Lines
B66: Requirement 1 | C66: Transmission Lines | D66: [C-i-C] | I66: Transmission Lines | J66: Baywater to Liddell | L66: 1.68 | R66: 0 | S66: 0 | T66: 1 | U66: 1 | V66: 1 | X66: TAERIM | Y66: 1363.853903 | Z66: 5799.84
B67: Requirement 2 | C67: Transmission Lines | D67: [C-i-C] | I67: Transmission Lines | J67: Baywater to Liddell | L67: 1.68 | R67: 0 | S67: 0 | T67: 0 | U67: 2 | V67: 0 | X67: TCCT10 | Y67: 721.7239731 | Z67: 5113.56
B68: Requirement 3 | C68: Transmission Lines | D68: [C-i-C] | I68: Transmission Lines | J68: Baywater to Liddell | L68: 1.68 | R68: 0 | S68: 0 | T68: 0 | U68: 2 | V68: 0 | X68: TCI001 | Y68: 235.9980979 | Z68: 167.184
B69: Requirement 4 | C69: Easements & Access Tracks | D69: [C-i-C] | I69: Easements & Access Tracks | J69: Baywater to Liddell | L69: 1.68 | R69: 0 | S69: 0 | T69: 0 | U69: 1 | V69: 0 | X69: TEI025 | Y69: 1746.748239 | Z69: 2064
B70: Requirement 5 | C70: Easements & Access Tracks | D70: [C-i-C] | I70: Easements & Access Tracks | J70: Baywater to Liddell | L70: 1.68 | R70: 0 | S70: 0 | T70: 0 | U70: 0.4 | V70: 0 | X70: TEM025 | Y70: 5919.942074 | Z70: 51600
B71: Requirement 6 | C71: Easements & Access Tracks | D71: [C-i-C] | I71: Easements & Access Tracks | J71: Baywater to Liddell | L71: 1.68 | R71: 0 | S71: 0 | T71: 1 | U71: 1 | V71: 1 | X71: TLIDR | Y71: 235.9980979 | Z71: 6398.4
B72: Requirement 7 | C72: Transmission Lines | D72: [C-i-C] | I72: Transmission Lines | J72: Baywater to Liddell | L72: 1.68 | R72: 0 | S72: 0 | T72: 0 | U72: 0 | V72: 0 | X72: TETEST | Y72: 1310.345035 | Z72: 0
B73: Requirement 8 | C73: Transmission Lines | D73: [C-i-C] | I73: Transmission Lines | J73: Baywater to Liddell | L73: 1.68 | R73: 0 | S73: 0 | T73: 0 | U73: 1 | V73: 0 | X73: TTHERM | Y73: 612.6355745 | Z73: 3096
B74: Requirement 9 | C74: Transmission Lines | D74: [C-i-C] | I74: Transmission Lines | J74: Mount Piper 330kV to Wallerawang 330kV | L74: 1.68 | R74: 0 | S74: 0 | T74: 1 | U74: 1 | V74: 1 | X74: TAERIM | Y74: 1363.853903 | Z74: 5799.84
B75: Requirement 10 | C75: Transmission Lines | D75: [C-i-C] | I75: Transmission Lines | J75: Mount Piper 330kV to Wallerawang 330kV | L75: 1.68 | R75: 0 | S75: 0 | T75: 0 | U75: 3 | V75: 0 | X75: TCCT10 | Y75: 721.7239731 | Z75: 5113.56
B76: Requirement 11 | C76: Transmission Lines | D76: [C-i-C] | I76: Transmission Lines | J76: Mount Piper 330kV to Wallerawang 330kV | L76: 1.68 | R76: 0 | S76: 0 | T76: 0 | U76: 4 | V76: 0 | X76: TCI001 | Y76: 235.9980979 | Z76: 167.184
B77: Requirement 12 | C77: Easements & Access Tracks | D77: [C-i-C] | I77: Easements & Access Tracks | J77: Mount Piper 330kV to Wallerawang 330kV | L77: 1.68 | R77: 0 | S77: 0 | T77: 0 | U77: 1.2 | V77: 0 | X77: TEI025 | Y77: 1746.748239 | Z77: 2064
B78: Requirement 13 | C78: Easements & Access Tracks | D78: [C-i-C] | I78: Easements & Access Tracks | J78: Mount Piper 330kV to Wallerawang 330kV | L78: 1.68 | R78: 0 | S78: 0 | T78: 0 | U78: 1 | V78: 0 | X78: TEM050 | Y78: 5919.942074 | Z78: 61920
B79: Requirement 14 | C79: Easements & Access Tracks | D79: [C-i-C] | I79: Easements & Access Tracks | J79: Mount Piper 330kV to Wallerawang 330kV | L79: 1.68 | R79: 0 | S79: 0 | T79: 1 | U79: 1 | V79: 1 | X79: TLIDR | Y79: 235.9980979 | Z79: 6398.4
B80: Requirement 15 | C80: Transmission Lines | D80: [C-i-C] | I80: Transmission Lines | J80: Mount Piper 330kV to Wallerawang 330kV | L80: 1.68 | R80: 0 | S80: 0 | T80: 0 | U80: 0 | V80: 0 | X80: TETEST | Y80: 1310.345035 | Z80: 0
B81: Requirement 16 | C81: Transmission Lines | D81: [C-i-C] | I81: Transmission Lines | J81: Mount Piper 330kV to Wallerawang 330kV | L81: 1.68 | R81: 0 | S81: 0 | T81: 0 | U81: 1 | V81: 0 | X81: TTHERM | Y81: 612.6355745 | Z81: 3096
B82: Requirement 17
B86: Operating costs
B88: Direct costs | F88: Conversion | I88: Material rate | J88: Hourly rate | L88: Hours per year | Q88: Headcount Forecast (FTEs) | X88: Material (Number)
B89: Item | C89: Resource Description | D89: Units | F89: Dollar Year | G89: Escalation Year | H89: Timing | J89: $ per hour per FTE | L89: Hours | Q89: =Q$14 -> 2026 | R89: 2027 | S89: 2028 | T89: 2029 | U89: 2030 | V89: 2031 | X89: =Q89 -> 2026 | Y89: 2027 | Z89: 2028 | AA89: 2029 | AB89: 2030 | AC89: 2031
B90: Commercial | J90: Note: Includes on-costs and support costs | L90: =(7*5*48)*0+1800 -> 1800 | M90: Operating Costs | S90: Note: salaries are assumed to be in mid-year dollars
B91: Network Commercial | C91: Group Manager (Emerging Major Projects) | D91: Various | F91: 2026 | G91: =F91+1 -> 2027 | H91: End | J91: 491.02 | L91: 1800 | M91: Other Costs | R91: 0 | S91: 0 | T91: 0.2840131579 | U91: 0.2840131579 | V91: 0.2840131579
B92: Network Commercial | C92: Level 4 ID Manager (Emerging Projects) | D92: Various | F92: 2026 | G92: =F92+1 -> 2027 | H92: End | J92: 353.83 | R92: 0 | S92: 0.02683662281 | T92: 0.6078947368 | U92: 0.6078947368 | V92: 0.6078947368
B93: Network Commercial | C93: Network Planning – Senior (Emerging Projects) | D93: Various | F93: 2026 | G93: =F93+1 -> 2027 | H93: End | J93: 353.83 | R93: 0 | S93: 0.08162828947 | T93: 0.9795394737 | U93: 0.9795394737 | V93: 0.9795394737
B94: Network Commercial | C94: Project Manager - Senior (Emerging Major Projects) | D94: Various | F94: 2026 | G94: =F94+1 -> 2027 | H94: End | J94: 307.28 | R94: 0 | S94: 0.1316128268 | T94: 1.55270154 | U94: 1.549935945 | V94: 1.54718046
B95: Network Commercial | C95: Legal Gov & Risk - Senior (Legal Affairs) | D95: Various | F95: 2026 | G95: =F95+1 -> 2027 | H95: End | J95: 316.45 | R95: 0 | S95: 0.02404605263 | T95: 0.2885526316 | U95: 0.2885526316 | V95: 0.2885526316
B96: Asset Management
B97: Asset Strategist - Asset creation and acceptance, manage interface with ACEREZ amd EnCo under project agreement, interface deed, and line crossing deed. Ongoing asset strategies, maintenance planning, monitoring and reporting. | C97: Asset Manager - Senior (Substation Assets) | D97: Various | F97: 2026 | G97: =F97+1 -> 2027 | H97: End | J97: 300.34 | R97: 0 | S97: 0.5 | T97: 1 | U97: 1 | V97: 1
D98: Various
B99: Delivery
B100: Delivery | C100: Maintenance works management and planning | D100: Various | F100: 2026 | G100: =F100+1 -> 2027 | H100: End | J100: 344.43 | R100: 0 | S100: 0.15 | T100: 0.3 | U100: 0.3 | V100: 0.3
B101: Delivery Maintenance | C101: Travel for Barrigan creek - non standard | D101: Various | F101: 2026 | G101: 2027 | H101: End | I101: 20640 | J101: 0 | R101: 0 | S101: 0 | T101: 0 | U101: 0 | V101: 0 | X101: 0 | Y101: 0 | Z101: 1 | AA101: 4 | AB101: 1 | AC101: 1
B102: Delivery Maintenance | C102: Increase in cost for thermography | D102: Various | F102: 2026 | G102: 2027 | H102: End | I102: 10320 | J102: 0 | R102: 0 | S102: 0 | T102: 0 | U102: 0 | V102: 0 | X102: 0 | Y102: 0 | Z102: 0 | AA102: 0 | AB102: 1 | AC102: 0
B103: Delivery Property | C103: Property Maintenance | D103: Various | F103: 2026 | G103: 2027 | H103: End | J103: 199.99 | R103: 0 | S103: 0.016665 | T103: 0.05 | U103: 0.05 | V103: 0.05
B104: Delivery Property | C104: Property Maintenance | D104: Various | F104: 2026 | G104: 2027 | H104: End | J104: 199.99 | R104: 0 | S104: 0.016665 | T104: 0.05 | U104: 0.05 | V104: 0.05
B105: Delivery Property | C105: Property Maintenance | F105: 2026 | G105: 2027 | H105: End | J105: 293.18 | R105: 0 | S105: 0.016665 | T105: 0.05 | U105: 0.05 | V105: 0.05
B106: Delivery | C106: Easements & Access Tracks | D106: Various | F106: 2026 | G106: 2027 | H106: End | I106: 10320 | J106: 0 | R106: 0 | S106: 0 | T106: 0 | U106: 0 | V106: 0 | X106: 0 | Y106: 0 | Z106: 1 | AA106: 1 | AB106: 1 | AC106: 1
B107: Network Planning
B108: Network Planning | C108: Team lead - REZ planning and intergration | D108: Various | F108: 2026 | G108: =F108+1 -> 2027 | H108: End | J108: 491.02 | R108: 0 | S108: 0.1 | T108: 0.2 | U108: 0.2 | V108: 0.2
B109: Network Planning | C109: System Planning | D109: Various | F109: 2026 | G109: 2027 | H109: End | J109: 307.28 | R109: 0 | S109: 0.128 | T109: 0.256 | U109: 0.256 | V109: 0.256
B110: Network Planning | C110: System Planning | D110: Various | F110: 2026 | G110: 2027 | H110: End | J110: 232.19 | R110: 0 | S110: 0.072 | T110: 0.144 | U110: 0.144 | V110: 0.144
B111: Network Planning | C111: Network Analysis (modelling and analysis) | D111: Various | F111: 2026 | G111: 2027 | H111: End | J111: 307.28 | R111: 0 | S111: 0.2 | T111: 0.4 | U111: 0.4 | V111: 0.4
B112: Network Planning | C112: Network Connections | D112: Various | F112: 2026 | G112: 2027 | H112: End | J112: 307.28 | R112: 0 | S112: 0 | T112: 0 | U112: 0 | V112: 0
B113: Network Planning | C113: Network Strategy and Development | D113: Various | F113: 2026 | G113: 2027 | H113: End | J113: 307.28 | R113: 0 | S113: 0.006 | T113: 0.012 | U113: 0.012 | V113: 0.012
B114: Network Operations
B115: Network Operations | C115: Operate - monitoring, ongoing managmenet of events and alarms, uplift in control room capacity | D115: Various | F115: 2026 | G115: =F115+1 -> 2027 | H115: End | J115: 344.43 | R115: 0 | S115: 0.1935 | T115: 0.387 | U115: 0.387 | V115: 0.387
B116: Network Operations | C116: Ouage - customer and interface management, coordination, and change management | D116: Various | F116: 2026 | G116: 2027 | H116: End | J116: 344.43 | R116: 0 | S116: 0.2145 | T116: 0.429 | U116: 0.429 | V116: 0.429
B117: Network Operations | C117: Analysis - contraint verification, outage constraints, outage contingencies, operating information, manage electrical models for State Estimator | D117: Various | F117: 2026 | G117: 2027 | H117: End | J117: 344.43 | R117: 0 | S117: 0.171 | T117: 0.342 | U117: 0.342 | V117: 0.342
B118: Network Operations | C118: Assets: monitoring, defects, emergency response, reporting | D118: Various | F118: 2026 | G118: 2027 | H118: End | J118: 344.43 | R118: 0 | S118: 0.162 | T118: 0.324 | U118: 0.324 | V118: 0.324
B119: Network Operations | C119: SCADA: Additional SCADA data points for REZ, manage SCADA mapping and pictures, additional interfaces, and DTS/simulator modelling | D119: Various | F119: 2026 | G119: 2027 | H119: End | J119: 195.19 | R119: 0 | S119: 0.264 | T119: 0.528 | U119: 0.528 | V119: 0.528
B120: Network Operations | C120: Leasing of new control room space | D120: Various | F120: 2026 | G120: 2027 | H120: End | I120: 1878.24 | J120: 0 | R120: 0 | S120: 0 | T120: 0 | U120: 0 | V120: 0 | X120: =Q120 -> 0 | Y120: 0 | Z120: 0 | AA120: 0 | AB120: 0 | AC120: 0
B121: Finance & Audit
B122: Finance and Audit | C122: Exernal Audit fees | D122: Various | F122: 2026 | G122: 2027 | H122: End | I122: 433440 | J122: 0 | R122: 0 | S122: 0 | T122: 0 | U122: 0 | V122: 0 | Y122: 0 | Z122: 1 | AA122: 1 | AB122: 1 | AC122: 1
B123: Finance and Audit | C123: Annual reporting | D123: Various | F123: 2026 | G123: 2027 | H123: End | J123: 491.02 | R123: 0 | S123: 0.05 | T123: 0.05 | U123: 0.05 | V123: 0.05
B124: Finance and Audit | C124: Annual reporting | D124: Various | F124: 2026 | G124: 2027 | H124: End | J124: 321.15 | R124: 0 | S124: 0.1 | T124: 0.1 | U124: 0.1 | V124: 0.1
B125: Finance and Audit | C125: SBP payment processing | D125: Various | F125: 2026 | G125: 2027 | H125: End | J125: 185.15 | R125: 0 | S125: 0.05 | T125: 0.05 | U125: 0.05 | V125: 0.05
B126: Regulatory submissions
B127: Annual payments updates - Regulation | C127: Group Manager (Reg Policy) | D127: Various | F127: 2026 | G127: =F127+1 -> 2027 | H127: End | J127: 491.02 | R127: 0.08333333333 | S127: 0.08333333333 | T127: 0.08333333333 | U127: 0.08333333333 | V127: 0.08333333333
B128: Annual payments updates - Regulation | C128: Legal Gov & Risk - Senior (Regulatory & Policy) | D128: Various | F128: 2026 | G128: =F128+1 -> 2027 | H128: =H127 -> End | J128: 316.45 | R128: 0.1666666667 | S128: 0.1666666667 | T128: 0.1666666667 | U128: 0.1666666667 | V128: 0.1666666667
B129: Annual payments updates - Network Commercial | C129: Group Manager (Emerging Major Projects) | D129: Various | F129: 2026 | G129: =F129+1 -> 2027 | H129: =H128 -> End | J129: 491.02 | R129: 0.009210526316 | S129: 0.009210526316 | T129: 0.009210526316 | U129: 0.009210526316 | V129: 0.009210526316
B130: Annual payments updates - Network Commercial | C130: Level 4 ID Manager (Emerging Projects) | D130: Various | F130: 2026 | G130: =F130+1 -> 2027 | H130: End | J130: 353.83 | R130: 0.01842105263 | S130: 0.01842105263 | T130: 0.01842105263 | U130: 0.01842105263 | V130: 0.01842105263
B131: Annual payments updates - Network Commercial | C131: Network Planning – Senior (Emerging Projects) | D131: Various | F131: 2026 | G131: =F131+1 -> 2027 | H131: End | J131: 353.83 | R131: 0.09210526316 | S131: 0.09210526316 | T131: 0.09210526316 | U131: 0.09210526316 | V131: 0.09210526316
B132: Annual payments updates - Network Commercial | C132: Project Manager - Senior (Emerging Major Projects) | D132: Various | F132: 2026 | G132: =F132+1 -> 2027 | H132: End | J132: 307.28 | R132: 0.09210526316 | S132: 0.09210526316 | T132: 0.09210526316 | U132: 0.09210526316 | V132: 0.09210526316
B133: Annual payments updates - Finance | C133: Group Manager Corporate Finance and Strategy | D133: Various | F133: 2026 | G133: 2027 | H133: End | J133: 491.02 | R133: 0.05 | S133: 0.05 | T133: 0.05 | U133: 0.05 | V133: 0.05
B134: Annual payments updates - Finance | C134: Corporate Finance Director | D134: Various | F134: 2026 | G134: 2027 | H134: End | J134: 491.02 | R134: 0.05 | S134: 0.05 | T134: 0.05 | U134: 0.05 | V134: 0.05
B135: Annual payments updates - Finance | C135: Corporate Finance Senior Associate | D135: Various | F135: 2026 | G135: 2027 | H135: End | J135: 321.15 | R135: 0.1 | S135: 0.1 | T135: 0.1 | U135: 0.1 | V135: 0.1
B136: Annual payments updates - Finance | C136: Group Manager Finance Network | D136: Various | F136: 2026 | G136: 2027 | H136: End | J136: 491.02 | R136: 0.02 | S136: 0.02 | T136: 0.02 | U136: 0.02 | V136: 0.02
B137: Annual payments updates - Finance | C137: Senior Finance Business Partner | D137: Various | F137: 2026 | G137: 2027 | H137: End | J137: 321.15 | R137: 0.05 | S137: 0.05 | T137: 0.05 | U137: 0.05 | V137: 0.05
B138: RP2 For CWOREZ - Regulation | C138: Group Manager (Reg Policy) | D138: Various | F138: 2026 | G138: 2027 | H138: End | J138: 491.02 | R138: 0 | S138: 0 | T138: 0 | U138: 0.3333333333 | V138: 0.08333333333
B139: RP2 For CWOREZ - Regulation | C139: Legal Gov & Risk - Senior (Regulatory & Policy) | D139: Various | F139: 2026 | G139: 2027 | H139: End | J139: 316.45 | R139: 0 | S139: 0 | T139: 0 | U139: 0.3333333333 | V139: 0.1666666667
B140: RP2 For CWOREZ - Regulation | C140: Legal Gov & Risk - Senior (Regulatory & Policy) | D140: Various | F140: 2026 | G140: 2027 | H140: End | J140: 316.45 | R140: 0 | S140: 0 | T140: 0 | U140: 0.3333333333 | V140: 0.1666666667
B141: RP2 For CWOREZ - Regulation | C141: Corporate & Reg Affairs Officer (GovtStakeholder&Adv) | D141: Various | F141: 2026 | G141: 2027 | H141: End | J141: 169.9 | R141: 0 | S141: 0 | T141: 0 | U141: 0.1666666667 | V141: 0.08333333333
B142: RP2 For CWOREZ - Network Commercial | C142: Group Manager (Emerging Major Projects) | D142: Various | F142: 2026 | G142: 2027 | H142: End | J142: 491.02 | R142: 0 | S142: 0 | T142: 0 | U142: 0.02763157895 | V142: 0.01842105263
B143: RP2 For CWOREZ - Network Commercial | C143: Level 4 ID Manager (Emerging Projects) | D143: Various | F143: 2026 | G143: 2027 | H143: End | J143: 353.83 | R143: 0 | S143: 0 | T143: 0 | U143: 0.1657894737 | V143: 0.1105263158
B144: RP2 For CWOREZ - Network Commercial | C144: Network Planning – Senior (Emerging Projects) | D144: Various | F144: 2026 | G144: 2027 | H144: End | J144: 353.83 | R144: 0 | S144: 0 | T144: 0 | U144: 0.2763157895 | V144: 0.1842105263
B145: RP2 For CWOREZ - Network Commercial | C145: Project Manager - Senior (Emerging Major Projects) | D145: Various | F145: 2026 | G145: 2027 | H145: End | J145: 307.28 | R145: 0 | S145: 0 | T145: 0 | U145: 0.2763157895 | V145: 0.1842105263
B146: RP2 For CWOREZ - Finance | C146: Group Manager Corporate Finance and Strategy | D146: Various | F146: 2026 | G146: 2027 | H146: End | J146: 491.02 | R146: 0 | S146: 0 | T146: 0 | U146: 0.05 | V146: 0.05
B147: RP2 For CWOREZ - Finance | C147: Corporate Finance Director | D147: Various | F147: 2026 | G147: 2027 | H147: End | J147: 491.02 | R147: 0 | S147: 0 | T147: 0 | U147: 0.05 | V147: 0.05
B148: RP2 For CWOREZ - Finance | C148: Corporate Finance Senior Associate | D148: Various | F148: 2026 | G148: 2027 | H148: End | J148: 321.15 | R148: 0 | S148: 0 | T148: 0 | U148: 0.1 | V148: 0.1
B149: RP2 For CWOREZ - Finance | C149: Group Manager Finance Network | D149: Various | F149: 2026 | G149: 2027 | H149: End | J149: 491.02 | R149: 0 | S149: 0 | T149: 0 | U149: 0.02 | V149: 0.02
B150: RP2 For CWOREZ - Finance | C150: Senior Finance Business Partner | D150: Various | F150: 2026 | G150: 2027 | H150: End | J150: 321.15 | R150: 0 | S150: 0 | T150: 0 | U150: 0.05 | V150: 0.05
N152: Labour costs | Q152: =SUMPRODUCT($J$90:$J$150,Q$90:Q$150)*$L$90 -> 0 | R152: 490836.7516 | S152: 2004534.159 | T152: 5394438.29 | U152: 6769828.791 | V152: 6179048.273 | X152: =SUMPRODUCT($I$90:$I$150,X$90:X$150) -> 0 | Y152: 0 | Z152: 464400 | AA152: 526320 | AB152: 474720 | AC152: 464400 | AE152: Note: this is the total cost excluding labour escalation and inflation
B154: Insurance costs
B157: =B154 -> Insurance costs | F157: Conversion | Q157: ="Cost (As Incurred) (Real $"&F159&", "&G159&" year)" -> Cost (As Incurred) (Real $2026, End year)
B158: Item | C158: Source | D158: Units | F158: Dollar Year | G158: Timing | Q158: =Q$20 -> 2026 | R158: 2027 | S158: 2028 | T158: 2029 | U158: 2030 | V158: 2031
B159: Annual Insurance Premium - Original Scope of Works | C159: Locktons | D159: $Dollars | F159: 2026 | G159: End | R159: 0 | S159: 315270.521 | T159: 315270.521 | U159: 315270.521 | V159: 315270.521 | X159: Note: Premium is payable at commissioning, in 2026-27
B160: Annual Insurance Premium - BCSS | C160: Locktons | D160: $Dollars | F160: 2026 | G160: End | R160: 0 | S160: 0 | T160: 0 | U160: 0 | V160: 0
B161: Legal Gov & Risk - Senior (Legal Affairs) | C161: TransGrid | D161: $Dollars | F161: 2026 | G161: End | R161: 0 | S161: 0 | T161: 0 | U161: 47467.5 | V161: 0
B162: Prepare insurance premium cost estimate | C162: Locktons | D162: $Dollars | F162: 2026 | G162: End | R162: 0 | S162: 0 | T162: 0 | U162: 10039.3625 | V162: 0
B164: Strategic Benefits Payments
B167: =B164 -> Strategic Benefits Payments | F167: Conversion | Q167: ="Cost (As Incurred) (Real $)" -> Cost (As Incurred) (Real $)
B168: Item | C168: Source | D168: Units | F168: Dollar Year | G168: Timing | Q168: =Q$20 -> 2026 | R168: 2027 | S168: 2028 | T168: 2029 | U168: 2030 | V168: 2031
B169: Annual payments to landholders | C169: TransGrid / Calculated | D169: $Dollars | F169: 2026 | G169: End | R169: [C-i-C] | S169: [C-i-C] | T169: [C-i-C] | U169: [C-i-C] | V169: [C-i-C]
B170: Administering the payments | C170: TransGrid / Calculated | D170: $Dollars | F170: 2026 | G170: End | R170: [C-i-C] | S170: [C-i-C] | T170: [C-i-C] | U170: [C-i-C] | V170: [C-i-C]
B172: Vegetation Integrity Rehabilitation Costs
B175: =B172 -> Vegetation Integrity Rehabilitation Costs | F175: Conversion | Q175: ="Cost (As Incurred) (Real $)" -> Cost (As Incurred) (Real $)
B176: Item | C176: Source | D176: Units | F176: Dollar Year | G176: Timing | Q176: =Q$20 -> 2026 | R176: 2027 | S176: 2028 | T176: 2029 | U176: 2030 | V176: 2031
B177: Labour | C177: TransGrid / Calculated | D177: $Dollars | F177: 2026 | G177: End | R177: [C-i-C] | S177: [C-i-C] | T177: [C-i-C] | U177: [C-i-C] | V177: [C-i-C]
B178: Contracted Labour | C178: TransGrid / Calculated | D178: $Dollars | F178: 2026 | G178: End | R178: [C-i-C] | S178: [C-i-C] | T178: [C-i-C] | U178: [C-i-C] | V178: [C-i-C]
B180: Debt raising costs
B183: =B180 -> Debt raising costs | F183: Conversion | Q183: ="Cost (As Incurred) (Real $"&F185&", "&G185&" year)" -> Cost (As Incurred) (Real $2026, End year)
B184: Item | C184: Source | D184: Units | F184: Dollar Year | G184: Timing | Q184: =Q$20 -> 2026 | R184: 2027 | S184: 2028 | T184: 2029 | U184: 2030 | V184: 2031
B185: Debt raising cost allowance | C185: PTRM | D185: $Dollars | F185: 2026 | G185: End | R185: 83350.43848 | S185: 156184.8717 | T185: 210492.4995 | U185: 208461.8358 | V185: 202177.7715
B188: End

Sheet Calculations
A1: Calculations
B3: =Inputs!$B$31 -> Maintenance expenditure | K3: Total
B4: Activity | C4: Dollar basis | D4: Units | E4: =Inputs!Q$20 -> 2026 | F4: =Inputs!R$20 -> 2027 | G4: =Inputs!S$20 -> 2028 | H4: =Inputs!T$20 -> 2029 | I4: =Inputs!U$20 -> 2030 | J4: =Inputs!V$20 -> 2031
B6: =Inputs!B35 -> Substations
B7: Labour | C7: =Inputs!$B$8 -> Real $2026 | D7: Dollars | E7: =SUM(Inputs!Q$36:Q$64*Inputs!$Y$36:$Y$64*(1+Inputs!$L$36:$L$64))*INDEX(IF(Inputs!$H$35="Mid",Inputs!$N$21:$V$21,Inputs!$N$22:$V$22),MATCH(Inputs!$F$35,Inputs!$N$20:$V$20,0)) -> 0 | F7: =SUM(Inputs!R$36:R$64*Inputs!$Y$36:$Y$64*(1+Inputs!$L$36:$L$64))*INDEX(IF(Inputs!$H$35="Mid",Inputs!$N$21:$V$21,Inputs!$N$22:$V$22),MATCH(Inputs!$F$35,Inputs!$N$20:$V$20,0)) -> 0 | G7: =SUM(Inputs!S$36:S$64*Inputs!$Y$36:$Y$64*(1+Inputs!$L$36:$L$64))*INDEX(IF(Inputs!$H$35="Mid",Inputs!$N$21:$V$21,Inputs!$N$22:$V$22),MATCH(Inputs!$F$35,Inputs!$N$20:$V$20,0)) -> 64642.21081 | H7: =SUM(Inputs!T$36:T$64*Inputs!$Y$36:$Y$64*(1+Inputs!$L$36:$L$64))*INDEX(IF(Inputs!$H$35="Mid",Inputs!$N$21:$V$21,Inputs!$N$22:$V$22),MATCH(Inputs!$F$35,Inputs!$N$20:$V$20,0)) -> 408485.1848 | I7: =SUM(Inputs!U$36:U$64*Inputs!$Y$36:$Y$64*(1+Inputs!$L$36:$L$64))*INDEX(IF(Inputs!$H$35="Mid",Inputs!$N$21:$V$21,Inputs!$N$22:$V$22),MATCH(Inputs!$F$35,Inputs!$N$20:$V$20,0)) -> 303570.966 | J7: =SUM(Inputs!V$36:V$64*Inputs!$Y$36:$Y$64*(1+Inputs!$L$36:$L$64))*INDEX(IF(Inputs!$H$35="Mid",Inputs!$N$21:$V$21,Inputs!$N$22:$V$22),MATCH(Inputs!$F$35,Inputs!$N$20:$V$20,0)) -> 78355.78194 | K7: =SUM(E7:J7) -> 855054.1435
B8: Labour escalation | C8: =Inputs!$B$8 -> Real $2026 | D8: Dollars | E8: =E7*(Inputs!Q$23-1) -> 0 | F8: =F7*(Inputs!R$23-1) -> 0 | G8: =G7*(Inputs!S$23-1) -> 2088.523348 | H8: =H7*(Inputs!T$23-1) -> 14745.2853 | I8: =I7*(Inputs!U$23-1) -> 12112.44806 | J8: =J7*(Inputs!V$23-1) -> 3425.421358 | K8: =SUM(E8:J8) -> 32371.67807
B9: Materials | C9: =Inputs!$B$8 -> Real $2026 | D9: Dollars | E9: =SUM(Inputs!Q$36:Q$64*Inputs!$Z$36:$Z$64*(1+Inputs!$L$36:$L$64))*INDEX(IF(Inputs!$H$35="Mid",Inputs!$N$21:$V$21,Inputs!$N$22:$V$22),MATCH(Inputs!$F$35,Inputs!$N$20:$V$20,0)) -> 0 | F9: =SUM(Inputs!R$36:R$64*Inputs!$Z$36:$Z$64*(1+Inputs!$L$36:$L$64))*INDEX(IF(Inputs!$H$35="Mid",Inputs!$N$21:$V$21,Inputs!$N$22:$V$22),MATCH(Inputs!$F$35,Inputs!$N$20:$V$20,0)) -> 0 | G9: =SUM(Inputs!S$36:S$64*Inputs!$Z$36:$Z$64*(1+Inputs!$L$36:$L$64))*INDEX(IF(Inputs!$H$35="Mid",Inputs!$N$21:$V$21,Inputs!$N$22:$V$22),MATCH(Inputs!$F$35,Inputs!$N$20:$V$20,0)) -> 29587.5432 | H9: =SUM(Inputs!T$36:T$64*Inputs!$Z$36:$Z$64*(1+Inputs!$L$36:$L$64))*INDEX(IF(Inputs!$H$35="Mid",Inputs!$N$21:$V$21,Inputs!$N$22:$V$22),MATCH(Inputs!$F$35,Inputs!$N$20:$V$20,0)) -> 34118.0232 | I9: =SUM(Inputs!U$36:U$64*Inputs!$Z$36:$Z$64*(1+Inputs!$L$36:$L$64))*INDEX(IF(Inputs!$H$35="Mid",Inputs!$N$21:$V$21,Inputs!$N$22:$V$22),MATCH(Inputs!$F$35,Inputs!$N$20:$V$20,0)) -> 30829.37976 | J9: =SUM(Inputs!V$36:V$64*Inputs!$Z$36:$Z$64*(1+Inputs!$L$36:$L$64))*INDEX(IF(Inputs!$H$35="Mid",Inputs!$N$21:$V$21,Inputs!$N$22:$V$22),MATCH(Inputs!$F$35,Inputs!$N$20:$V$20,0)) -> 29633.364 | K9: =SUM(E9:J9) -> 124168.3102
B10: Sub-Total | C10: =Inputs!$B$8 -> Real $2026 | D10: Dollars | E10: =SUM(E7:E9) -> 0 | F10: 0 | G10: 96318.27735 | H10: 457348.4933 | I10: 346512.7939 | J10: 111414.5673 | K10: 1011594.132
B12: =Inputs!B65 -> Transmission Lines
B13: Labour | C13: =Inputs!$B$8 -> Real $2026 | D13: Dollars | E13: =SUM(Inputs!Q$66:Q$82*Inputs!$Y$66:$Y$82*(1+Inputs!$L$66:$L$82))*INDEX(IF(Inputs!$H$35="Mid",Inputs!$N$21:$V$21,Inputs!$N$22:$V$22),MATCH(Inputs!$F$35,Inputs!$N$20:$V$20,0)) -> 0 | F13: =SUM(Inputs!R$66:R$82*Inputs!$Y$66:$Y$82*(1+Inputs!$L$66:$L$82))*INDEX(IF(Inputs!$H$35="Mid",Inputs!$N$21:$V$21,Inputs!$N$22:$V$22),MATCH(Inputs!$F$35,Inputs!$N$20:$V$20,0)) -> 0 | G13: =SUM(Inputs!S$66:S$82*Inputs!$Y$66:$Y$82*(1+Inputs!$L$66:$L$82))*INDEX(IF(Inputs!$H$35="Mid",Inputs!$N$21:$V$21,Inputs!$N$22:$V$22),MATCH(Inputs!$F$35,Inputs!$N$20:$V$20,0)) -> 0 | H13: =SUM(Inputs!T$66:T$82*Inputs!$Y$66:$Y$82*(1+Inputs!$L$66:$L$82))*INDEX(IF(Inputs!$H$35="Mid",Inputs!$N$21:$V$21,Inputs!$N$22:$V$22),MATCH(Inputs!$F$35,Inputs!$N$20:$V$20,0)) -> 8575.206722 | I13: =SUM(Inputs!U$66:U$82*Inputs!$Y$66:$Y$82*(1+Inputs!$L$66:$L$82))*INDEX(IF(Inputs!$H$35="Mid",Inputs!$N$21:$V$21,Inputs!$N$22:$V$22),MATCH(Inputs!$F$35,Inputs!$N$20:$V$20,0)) -> 57835.33433 | J13: =SUM(Inputs!V$66:V$82*Inputs!$Y$66:$Y$82*(1+Inputs!$L$66:$L$82))*INDEX(IF(Inputs!$H$35="Mid",Inputs!$N$21:$V$21,Inputs!$N$22:$V$22),MATCH(Inputs!$F$35,Inputs!$N$20:$V$20,0)) -> 8575.206722 | K13: =SUM(E13:J13) -> 74985.74778
B14: Labour escalation | C14: =Inputs!$B$8 -> Real $2026 | D14: Dollars | E14: =E13*(Inputs!Q$23-1) -> 0 | F14: =F13*(Inputs!R$23-1) -> 0 | G14: =G13*(Inputs!S$23-1) -> 0 | H14: =H13*(Inputs!T$23-1) -> 309.543343 | I14: =I13*(Inputs!U$23-1) -> 2307.623461 | J14: =J13*(Inputs!V$23-1) -> 374.8759253 | K14: =SUM(E14:J14) -> 2992.042729
B15: Materials | C15: =Inputs!$B$8 -> Real $2026 | D15: Dollars | E15: =SUM(Inputs!Q$66:Q$82*Inputs!$Z$66:$Z$82*(1+Inputs!$L$66:$L$82))*INDEX(IF(Inputs!$H$35="Mid",Inputs!$N$21:$V$21,Inputs!$N$22:$V$22),MATCH(Inputs!$F$35,Inputs!$N$20:$V$20,0)) -> 0 | F15: =SUM(Inputs!R$66:R$82*Inputs!$Z$66:$Z$82*(1+Inputs!$L$66:$L$82))*INDEX(IF(Inputs!$H$35="Mid",Inputs!$N$21:$V$21,Inputs!$N$22:$V$22),MATCH(Inputs!$F$35,Inputs!$N$20:$V$20,0)) -> 0 | G15: =SUM(Inputs!S$66:S$82*Inputs!$Z$66:$Z$82*(1+Inputs!$L$66:$L$82))*INDEX(IF(Inputs!$H$35="Mid",Inputs!$N$21:$V$21,Inputs!$N$22:$V$22),MATCH(Inputs!$F$35,Inputs!$N$20:$V$20,0)) -> 0 | H15: =SUM(Inputs!T$66:T$82*Inputs!$Z$66:$Z$82*(1+Inputs!$L$66:$L$82))*INDEX(IF(Inputs!$H$35="Mid",Inputs!$N$21:$V$21,Inputs!$N$22:$V$22),MATCH(Inputs!$F$35,Inputs!$N$20:$V$20,0)) -> 65382.5664 | I15: =SUM(Inputs!U$66:U$82*Inputs!$Z$66:$Z$82*(1+Inputs!$L$66:$L$82))*INDEX(IF(Inputs!$H$35="Mid",Inputs!$N$21:$V$21,Inputs!$N$22:$V$22),MATCH(Inputs!$F$35,Inputs!$N$20:$V$20,0)) -> 386617.2931 | J15: =SUM(Inputs!V$66:V$82*Inputs!$Z$66:$Z$82*(1+Inputs!$L$66:$L$82))*INDEX(IF(Inputs!$H$35="Mid",Inputs!$N$21:$V$21,Inputs!$N$22:$V$22),MATCH(Inputs!$F$35,Inputs!$N$20:$V$20,0)) -> 65382.5664 | K15: =SUM(E15:J15) -> 517382.4259
B16: Sub-Total | C16: =Inputs!$B$8 -> Real $2026 | D16: Dollars | E16: =SUM(E13:E15) -> 0 | F16: 0 | G16: 0 | H16: 74267.31646 | I16: 446760.2509 | J16: 74332.64905 | K16: 595360.2164
B19: Labour | C19: =Inputs!$B$8 -> Real $2026 | D19: Dollars | E19: =E7+E13 -> 0 | F19: 0 | G19: 64642.21081 | H19: 417060.3915 | I19: =I7+I13 -> 361406.3004 | J19: 86930.98866 | K19: =SUM(E19:J19) -> 930039.8913
B20: Labour escalation | C20: =Inputs!$B$8 -> Real $2026 | D20: Dollars | E20: 0 | F20: 0 | G20: 2088.523348 | H20: 15054.82865 | I20: 14420.07152 | J20: 3800.297283 | K20: =SUM(E20:J20) -> 35363.7208
B21: Materials | C21: =Inputs!$B$8 -> Real $2026 | D21: Dollars | E21: 0 | F21: 0 | G21: 29587.5432 | H21: 99500.5896 | I21: 417446.6729 | J21: 95015.9304 | K21: =SUM(E21:J21) -> 641550.7361
B22: Total maintenance costs | C22: =Inputs!$B$8 -> Real $2026 | D22: Dollars | E22: =SUM(E19:E21) -> 0 | F22: 0 | G22: 96318.27735 | H22: 531615.8097 | I22: 793273.0448 | J22: 185747.2163 | K22: 1606954.348
A24: =IF(SUM(E24:J24)=0,0,1) -> 0 | B24: Check - Labour | E24: =IF(ROUND(SUMPRODUCT(Inputs!Q36:Q82,Inputs!$Y36:$Y82,(1+Inputs!$L$36:$L$82))*INDEX(IF(Inputs!$H$35="Mid",Inputs!$N$21:$V$21,Inputs!$N$22:$V$22),MATCH(Inputs!$F$35,Inputs!$N$20:$V$20,0))-E19,3)=0,0,1) -> 0 | F24: =IF(ROUND(SUMPRODUCT(Inputs!R36:R82,Inputs!$Y36:$Y82,(1+Inputs!$L$36:$L$82))*INDEX(IF(Inputs!$H$35="Mid",Inputs!$N$21:$V$21,Inputs!$N$22:$V$22),MATCH(Inputs!$F$35,Inputs!$N$20:$V$20,0))-F19,3)=0,0,1) -> 0 | G24: =IF(ROUND(SUMPRODUCT(Inputs!S36:S82,Inputs!$Y36:$Y82,(1+Inputs!$L$36:$L$82))*INDEX(IF(Inputs!$H$35="Mid",Inputs!$N$21:$V$21,Inputs!$N$22:$V$22),MATCH(Inputs!$F$35,Inputs!$N$20:$V$20,0))-G19,3)=0,0,1) -> 0 | H24: =IF(ROUND(SUMPRODUCT(Inputs!T36:T82,Inputs!$Y36:$Y82,(1+Inputs!$L$36:$L$82))*INDEX(IF(Inputs!$H$35="Mid",Inputs!$N$21:$V$21,Inputs!$N$22:$V$22),MATCH(Inputs!$F$35,Inputs!$N$20:$V$20,0))-H19,3)=0,0,1) -> 0 | I24: =IF(ROUND(SUMPRODUCT(Inputs!U36:U82,Inputs!$Y36:$Y82,(1+Inputs!$L$36:$L$82))*INDEX(IF(Inputs!$H$35="Mid",Inputs!$N$21:$V$21,Inputs!$N$22:$V$22),MATCH(Inputs!$F$35,Inputs!$N$20:$V$20,0))-I19,3)=0,0,1) -> 0 | J24: =IF(ROUND(SUMPRODUCT(Inputs!V36:V82,Inputs!$Y36:$Y82,(1+Inputs!$L$36:$L$82))*INDEX(IF(Inputs!$H$35="Mid",Inputs!$N$21:$V$21,Inputs!$N$22:$V$22),MATCH(Inputs!$F$35,Inputs!$N$20:$V$20,0))-J19,3)=0,0,1) -> 0
A25: =IF(SUM(E25:J25)=0,0,1) -> 0 | B25: Check - Materials | E25: =IF(ROUND(SUMPRODUCT(Inputs!Q36:Q82,Inputs!$Z36:$Z82,(1+Inputs!$L$36:$L$82))*INDEX(IF(Inputs!$H$35="Mid",Inputs!$N$21:$V$21,Inputs!$N$22:$V$22),MATCH(Inputs!$F$35,Inputs!$N$20:$V$20,0))-E21,3)=0,0,1) -> 0 | F25: =IF(ROUND(SUMPRODUCT(Inputs!R36:R82,Inputs!$Z36:$Z82,(1+Inputs!$L$36:$L$82))*INDEX(IF(Inputs!$H$35="Mid",Inputs!$N$21:$V$21,Inputs!$N$22:$V$22),MATCH(Inputs!$F$35,Inputs!$N$20:$V$20,0))-F21,3)=0,0,1) -> 0 | G25: =IF(ROUND(SUMPRODUCT(Inputs!S36:S82,Inputs!$Z36:$Z82,(1+Inputs!$L$36:$L$82))*INDEX(IF(Inputs!$H$35="Mid",Inputs!$N$21:$V$21,Inputs!$N$22:$V$22),MATCH(Inputs!$F$35,Inputs!$N$20:$V$20,0))-G21,3)=0,0,1) -> 0 | H25: =IF(ROUND(SUMPRODUCT(Inputs!T36:T82,Inputs!$Z36:$Z82,(1+Inputs!$L$36:$L$82))*INDEX(IF(Inputs!$H$35="Mid",Inputs!$N$21:$V$21,Inputs!$N$22:$V$22),MATCH(Inputs!$F$35,Inputs!$N$20:$V$20,0))-H21,3)=0,0,1) -> 0 | I25: =IF(ROUND(SUMPRODUCT(Inputs!U36:U82,Inputs!$Z36:$Z82,(1+Inputs!$L$36:$L$82))*INDEX(IF(Inputs!$H$35="Mid",Inputs!$N$21:$V$21,Inputs!$N$22:$V$22),MATCH(Inputs!$F$35,Inputs!$N$20:$V$20,0))-I21,3)=0,0,1) -> 0 | J25: =IF(ROUND(SUMPRODUCT(Inputs!V36:V82,Inputs!$Z36:$Z82,(1+Inputs!$L$36:$L$82))*INDEX(IF(Inputs!$H$35="Mid",Inputs!$N$21:$V$21,Inputs!$N$22:$V$22),MATCH(Inputs!$F$35,Inputs!$N$20:$V$20,0))-J21,3)=0,0,1) -> 0
B27: =Inputs!$B$86 -> Operating costs | K27: Total
B28: Component | C28: Dollar basis | E28: =Inputs!Q$20 -> 2026 | F28: =Inputs!R$20 -> 2027 | G28: =Inputs!S$20 -> 2028 | H28: =Inputs!T$20 -> 2029 | I28: =Inputs!U$20 -> 2030 | J28: =Inputs!V$20 -> 2031
B30: =Inputs!B96 -> Asset Management
B31: Labour | C31: =Inputs!$B$8 -> Real $2026 | D31: Dollars | E31: =SUMPRODUCT(Inputs!$J$97:$J$98,Inputs!Q$97:Q$98)*Inputs!$L$90*INDEX(IF(Inputs!$H$91="Mid",Inputs!$N$21:$V$21,Inputs!$N$22:$V$22),MATCH(Inputs!$F$91,Inputs!$N$20:$V$20,0)) -> 0 | F31: =SUMPRODUCT(Inputs!$J$97:$J$98,Inputs!R$97:R$98)*Inputs!$L$90*INDEX(IF(Inputs!$H$91="Mid",Inputs!$N$21:$V$21,Inputs!$N$22:$V$22),MATCH(Inputs!$F$91,Inputs!$N$20:$V$20,0)) -> 0 | G31: =SUMPRODUCT(Inputs!$J$97:$J$98,Inputs!S$97:S$98)*Inputs!$L$90*INDEX(IF(Inputs!$H$91="Mid",Inputs!$N$21:$V$21,Inputs!$N$22:$V$22),MATCH(Inputs!$F$91,Inputs!$N$20:$V$20,0)) -> 270306 | H31: =SUMPRODUCT(Inputs!$J$97:$J$98,Inputs!T$97:T$98)*Inputs!$L$90*INDEX(IF(Inputs!$H$91="Mid",Inputs!$N$21:$V$21,Inputs!$N$22:$V$22),MATCH(Inputs!$F$91,Inputs!$N$20:$V$20,0)) -> 540612 | I31: =SUMPRODUCT(Inputs!$J$97:$J$98,Inputs!U$97:U$98)*Inputs!$L$90*INDEX(IF(Inputs!$H$91="Mid",Inputs!$N$21:$V$21,Inputs!$N$22:$V$22),MATCH(Inputs!$F$91,Inputs!$N$20:$V$20,0)) -> 540612 | J31: =SUMPRODUCT(Inputs!$J$97:$J$98,Inputs!V$97:V$98)*Inputs!$L$90*INDEX(IF(Inputs!$H$91="Mid",Inputs!$N$21:$V$21,Inputs!$N$22:$V$22),MATCH(Inputs!$F$91,Inputs!$N$20:$V$20,0)) -> 540612 | K31: =SUM(E31:J31) -> 1892142
B32: Labour escalation | C32: =Inputs!$B$8 -> Real $2026 | D32: Dollars | E32: =E31*(Inputs!Q$23-1) -> 0 | F32: =F31*(Inputs!R$23-1) -> 0 | G32: =G31*(Inputs!S$23-1) -> 8733.308854 | H32: =H31*(Inputs!T$23-1) -> 19514.73022 | I32: =I31*(Inputs!U$23-1) -> 21570.35917 | J32: =J31*(Inputs!V$23-1) -> 23633.53214 | K32: =SUM(E32:J32) -> 73451.93039
B33: Other | C33: =Inputs!$B$8 -> Real $2026 | D33: Dollars | E33: 0 | F33: 0 | G33: 0 | H33: 0 | I33: 0 | J33: 0 | K33: =SUM(E33:J33) -> 0
B34: Sub-Total | C34: =Inputs!$B$8 -> Real $2026 | D34: Dollars | E34: =SUM(E31:E33) -> 0 | F34: 0 | G34: 279039.3089 | H34: =SUM(H31:H33) -> 560126.7302 | I34: =SUM(I31:I33) -> 562182.3592 | J34: =SUM(J31:J33) -> 564245.5321 | K34: 1965593.93
B36: =Inputs!B99 -> Delivery
B37: =$B$31 -> Labour | C37: =Inputs!$B$8 -> Real $2026 | D37: Dollars | E37: =SUMPRODUCT(Inputs!$J$100:$J$106,Inputs!Q$100:Q$106)*Inputs!$L$90*INDEX(IF(Inputs!$H$91="Mid",Inputs!$N$21:$V$21,Inputs!$N$22:$V$22),MATCH(Inputs!$F$91,Inputs!$N$20:$V$20,0)) -> 0 | F37: =SUMPRODUCT(Inputs!$J$100:$J$106,Inputs!R$100:R$106)*Inputs!$L$90*INDEX(IF(Inputs!$H$91="Mid",Inputs!$N$21:$V$21,Inputs!$N$22:$V$22),MATCH(Inputs!$F$91,Inputs!$N$20:$V$20,0)) -> 0 | G37: =SUMPRODUCT(Inputs!$J$100:$J$106,Inputs!S$100:S$106)*Inputs!$L$90*INDEX(IF(Inputs!$H$91="Mid",Inputs!$N$21:$V$21,Inputs!$N$22:$V$22),MATCH(Inputs!$F$91,Inputs!$N$20:$V$20,0)) -> 113788.8205 | H37: =SUMPRODUCT(Inputs!$J$100:$J$106,Inputs!T$100:T$106)*Inputs!$L$90*INDEX(IF(Inputs!$H$91="Mid",Inputs!$N$21:$V$21,Inputs!$N$22:$V$22),MATCH(Inputs!$F$91,Inputs!$N$20:$V$20,0)) -> 248376.6 | I37: =SUMPRODUCT(Inputs!$J$100:$J$106,Inputs!U$100:U$106)*Inputs!$L$90*INDEX(IF(Inputs!$H$91="Mid",Inputs!$N$21:$V$21,Inputs!$N$22:$V$22),MATCH(Inputs!$F$91,Inputs!$N$20:$V$20,0)) -> 248376.6 | J37: =SUMPRODUCT(Inputs!$J$100:$J$106,Inputs!V$100:V$106)*Inputs!$L$90*INDEX(IF(Inputs!$H$91="Mid",Inputs!$N$21:$V$21,Inputs!$N$22:$V$22),MATCH(Inputs!$F$91,Inputs!$N$20:$V$20,0)) -> 248376.6 | K37: =SUM(E37:J37) -> 858918.6205
B38: =$B$32 -> Labour escalation | C38: =Inputs!$B$8 -> Real $2026 | D38: Dollars | E38: =E37*(Inputs!Q$23-1) -> 0 | F38: =F37*(Inputs!R$23-1) -> 0 | G38: =G37*(Inputs!S$23-1) -> 3676.399761 | H38: =H37*(Inputs!T$23-1) -> 8965.769057 | I38: =I37*(Inputs!U$23-1) -> 9910.198943 | J38: =J37*(Inputs!V$23-1) -> 10858.09483 | K38: =SUM(E38:J38) -> 33410.46259
B39: =$B$33 -> Other | C39: =Inputs!$B$8 -> Real $2026 | D39: Dollars | E39: =SUMPRODUCT(Inputs!$I$100:$I$106,Inputs!X$100:X$106)*INDEX(IF(Inputs!$H$91="Mid",Inputs!$N$21:$V$21,Inputs!$N$22:$V$22),MATCH(Inputs!$F$91,Inputs!$N$20:$V$20,0)) -> 0 | F39: =SUMPRODUCT(Inputs!$I$100:$I$106,Inputs!Y$100:Y$106)*INDEX(IF(Inputs!$H$91="Mid",Inputs!$N$21:$V$21,Inputs!$N$22:$V$22),MATCH(Inputs!$F$91,Inputs!$N$20:$V$20,0)) -> 0 | G39: =SUMPRODUCT(Inputs!$I$100:$I$106,Inputs!Z$100:Z$106)*INDEX(IF(Inputs!$H$91="Mid",Inputs!$N$21:$V$21,Inputs!$N$22:$V$22),MATCH(Inputs!$F$91,Inputs!$N$20:$V$20,0)) -> 30960 | H39: =SUMPRODUCT(Inputs!$I$100:$I$106,Inputs!AA$100:AA$106)*INDEX(IF(Inputs!$H$91="Mid",Inputs!$N$21:$V$21,Inputs!$N$22:$V$22),MATCH(Inputs!$F$91,Inputs!$N$20:$V$20,0)) -> 92880 | I39: =SUMPRODUCT(Inputs!$I$100:$I$106,Inputs!AB$100:AB$106)*INDEX(IF(Inputs!$H$91="Mid",Inputs!$N$21:$V$21,Inputs!$N$22:$V$22),MATCH(Inputs!$F$91,Inputs!$N$20:$V$20,0)) -> 41280 | J39: =SUMPRODUCT(Inputs!$I$100:$I$106,Inputs!AC$100:AC$106)*INDEX(IF(Inputs!$H$91="Mid",Inputs!$N$21:$V$21,Inputs!$N$22:$V$22),MATCH(Inputs!$F$91,Inputs!$N$20:$V$20,0)) -> 30960 | K39: =SUM(E39:J39) -> 196080
B40: Sub-Total | C40: =Inputs!$B$8 -> Real $2026 | D40: Dollars | E40: =SUM(E37:E39) -> 0 | F40: 0 | G40: 148425.2203 | H40: 350222.3691 | I40: 299566.7989 | J40: 290194.6948 | K40: 1088409.083
B42: =Inputs!B107 -> Network Planning
B43: =$B$31 -> Labour | C43: =Inputs!$B$8 -> Real $2026 | D43: Dollars | E43: =SUMPRODUCT(Inputs!$J$108:$J$113,Inputs!Q$108:Q$113)*Inputs!$L$90*INDEX(IF(Inputs!$H$91="Mid",Inputs!$N$21:$V$21,Inputs!$N$22:$V$22),MATCH(Inputs!$F$91,Inputs!$N$20:$V$20,0)) -> 0 | F43: =SUMPRODUCT(Inputs!$J$108:$J$113,Inputs!R$108:R$113)*Inputs!$L$90*INDEX(IF(Inputs!$H$91="Mid",Inputs!$N$21:$V$21,Inputs!$N$22:$V$22),MATCH(Inputs!$F$91,Inputs!$N$20:$V$20,0)) -> 0 | G43: =SUMPRODUCT(Inputs!$J$108:$J$113,Inputs!S$108:S$113)*Inputs!$L$90*INDEX(IF(Inputs!$H$91="Mid",Inputs!$N$21:$V$21,Inputs!$N$22:$V$22),MATCH(Inputs!$F$91,Inputs!$N$20:$V$20,0)) -> 303212.16 | H43: =SUMPRODUCT(Inputs!$J$108:$J$113,Inputs!T$108:T$113)*Inputs!$L$90*INDEX(IF(Inputs!$H$91="Mid",Inputs!$N$21:$V$21,Inputs!$N$22:$V$22),MATCH(Inputs!$F$91,Inputs!$N$20:$V$20,0)) -> 606424.32 | I43: =SUMPRODUCT(Inputs!$J$108:$J$113,Inputs!U$108:U$113)*Inputs!$L$90*INDEX(IF(Inputs!$H$91="Mid",Inputs!$N$21:$V$21,Inputs!$N$22:$V$22),MATCH(Inputs!$F$91,Inputs!$N$20:$V$20,0)) -> 606424.32 | J43: =SUMPRODUCT(Inputs!$J$108:$J$113,Inputs!V$108:V$113)*Inputs!$L$90*INDEX(IF(Inputs!$H$91="Mid",Inputs!$N$21:$V$21,Inputs!$N$22:$V$22),MATCH(Inputs!$F$91,Inputs!$N$20:$V$20,0)) -> 606424.32 | K43: =SUM(E43:J43) -> 2122485.12
B44: =$B$32 -> Labour escalation | C44: =Inputs!$B$8 -> Real $2026 | D44: Dollars | E44: =E43*(Inputs!Q$23-1) -> 0 | F44: =F43*(Inputs!R$23-1) -> 0 | G44: =G43*(Inputs!S$23-1) -> 9796.47304 | H44: =H43*(Inputs!T$23-1) -> 21890.38905 | I44: =I43*(Inputs!U$23-1) -> 24196.26348 | J44: =J43*(Inputs!V$23-1) -> 26510.60032 | K44: =SUM(E44:J44) -> 82393.72588
B45: =$B$33 -> Other | C45: =Inputs!$B$8 -> Real $2026 | D45: Dollars | E45: 0 | F45: 0 | G45: 0 | H45: 0 | I45: 0 | J45: 0 | K45: =SUM(E45:J45) -> 0
B46: Sub-Total | C46: =Inputs!$B$8 -> Real $2026 | D46: Dollars | E46: =SUM(E43:E45) -> 0 | F46: 0 | G46: 313008.633 | H46: 628314.709 | I46: 630620.5835 | J46: 632934.9203 | K46: 2204878.846
B48: =Inputs!B114 -> Network Operations
B49: =$B$31 -> Labour | C49: =Inputs!$B$8 -> Real $2026 | D49: Dollars | E49: =SUMPRODUCT(Inputs!$J$115:$J$120,Inputs!Q$115:Q$120)*Inputs!$L$90*INDEX(IF(Inputs!$H$91="Mid",Inputs!$N$21:$V$21,Inputs!$N$22:$V$22),MATCH(Inputs!$F$91,Inputs!$N$20:$V$20,0)) -> 0 | F49: =SUMPRODUCT(Inputs!$J$115:$J$120,Inputs!R$115:R$120)*Inputs!$L$90*INDEX(IF(Inputs!$H$91="Mid",Inputs!$N$21:$V$21,Inputs!$N$22:$V$22),MATCH(Inputs!$F$91,Inputs!$N$20:$V$20,0)) -> 0 | G49: =SUMPRODUCT(Inputs!$J$115:$J$120,Inputs!S$115:S$120)*Inputs!$L$90*INDEX(IF(Inputs!$H$91="Mid",Inputs!$N$21:$V$21,Inputs!$N$22:$V$22),MATCH(Inputs!$F$91,Inputs!$N$20:$V$20,0)) -> 552155.022 | H49: =SUMPRODUCT(Inputs!$J$115:$J$120,Inputs!T$115:T$120)*Inputs!$L$90*INDEX(IF(Inputs!$H$91="Mid",Inputs!$N$21:$V$21,Inputs!$N$22:$V$22),MATCH(Inputs!$F$91,Inputs!$N$20:$V$20,0)) -> 1104310.044 | I49: =SUMPRODUCT(Inputs!$J$115:$J$120,Inputs!U$115:U$120)*Inputs!$L$90*INDEX(IF(Inputs!$H$91="Mid",Inputs!$N$21:$V$21,Inputs!$N$22:$V$22),MATCH(Inputs!$F$91,Inputs!$N$20:$V$20,0)) -> 1104310.044 | J49: =SUMPRODUCT(Inputs!$J$115:$J$120,Inputs!V$115:V$120)*Inputs!$L$90*INDEX(IF(Inputs!$H$91="Mid",Inputs!$N$21:$V$21,Inputs!$N$22:$V$22),MATCH(Inputs!$F$91,Inputs!$N$20:$V$20,0)) -> 1104310.044 | K49: =SUM(E49:J49) -> 3865085.154
B50: =$B$32 -> Labour escalation | C50: =Inputs!$B$8 -> Real $2026 | D50: Dollars | E50: =E49*(Inputs!Q$23-1) -> 0 | F50: =F49*(Inputs!R$23-1) -> 0 | G50: =G49*(Inputs!S$23-1) -> 17839.56088 | H50: =H49*(Inputs!T$23-1) -> 39862.80842 | I50: =I49*(Inputs!U$23-1) -> 44061.84895 | J50: =J49*(Inputs!V$23-1) -> 48276.29968 | K50: =SUM(E50:J50) -> 150040.5179
B51: =$B$33 -> Other | C51: =Inputs!$B$8 -> Real $2026 | D51: Dollars | E51: =SUMPRODUCT(Inputs!$I$115:$I$120,Inputs!X$115:X$120)*INDEX(IF(Inputs!$H$91="Mid",Inputs!$N$21:$V$21,Inputs!$N$22:$V$22),MATCH(Inputs!$F$91,Inputs!$N$20:$V$20,0)) -> 0 | F51: =SUMPRODUCT(Inputs!$I$115:$I$120,Inputs!Y$115:Y$120)*INDEX(IF(Inputs!$H$91="Mid",Inputs!$N$21:$V$21,Inputs!$N$22:$V$22),MATCH(Inputs!$F$91,Inputs!$N$20:$V$20,0)) -> 0 | G51: =SUMPRODUCT(Inputs!$I$115:$I$120,Inputs!Z$115:Z$120)*INDEX(IF(Inputs!$H$91="Mid",Inputs!$N$21:$V$21,Inputs!$N$22:$V$22),MATCH(Inputs!$F$91,Inputs!$N$20:$V$20,0)) -> 0 | H51: =SUMPRODUCT(Inputs!$I$115:$I$120,Inputs!AA$115:AA$120)*INDEX(IF(Inputs!$H$91="Mid",Inputs!$N$21:$V$21,Inputs!$N$22:$V$22),MATCH(Inputs!$F$91,Inputs!$N$20:$V$20,0)) -> 0 | I51: =SUMPRODUCT(Inputs!$I$115:$I$120,Inputs!AB$115:AB$120)*INDEX(IF(Inputs!$H$91="Mid",Inputs!$N$21:$V$21,Inputs!$N$22:$V$22),MATCH(Inputs!$F$91,Inputs!$N$20:$V$20,0)) -> 0 | J51: =SUMPRODUCT(Inputs!$I$115:$I$120,Inputs!AC$115:AC$120)*INDEX(IF(Inputs!$H$91="Mid",Inputs!$N$21:$V$21,Inputs!$N$22:$V$22),MATCH(Inputs!$F$91,Inputs!$N$20:$V$20,0)) -> 0 | K51: =SUM(E51:J51) -> 0
B52: Sub-Total | C52: =Inputs!$B$8 -> Real $2026 | D52: Dollars | E52: =SUM(E49:E51) -> 0 | F52: 0 | G52: 569994.5829 | H52: 1144172.852 | I52: 1148371.893 | J52: 1152586.344 | K52: 4015125.672
B54: =Inputs!B121 -> Finance & Audit
B55: =$B$31 -> Labour | C55: =Inputs!$B$8 -> Real $2026 | D55: Dollars | E55: =SUMPRODUCT(Inputs!$J$122:$J$125,Inputs!Q$122:Q$125)*Inputs!$L$90*INDEX(IF(Inputs!$H$91="Mid",Inputs!$N$21:$V$21,Inputs!$N$22:$V$22),MATCH(Inputs!$F$91,Inputs!$N$20:$V$20,0)) -> 0 | F55: =SUMPRODUCT(Inputs!$J$122:$J$125,Inputs!R$122:R$125)*Inputs!$L$90*INDEX(IF(Inputs!$H$91="Mid",Inputs!$N$21:$V$21,Inputs!$N$22:$V$22),MATCH(Inputs!$F$91,Inputs!$N$20:$V$20,0)) -> 0 | G55: =SUMPRODUCT(Inputs!$J$122:$J$125,Inputs!S$122:S$125)*Inputs!$L$90*INDEX(IF(Inputs!$H$91="Mid",Inputs!$N$21:$V$21,Inputs!$N$22:$V$22),MATCH(Inputs!$F$91,Inputs!$N$20:$V$20,0)) -> 118662.3 | H55: =SUMPRODUCT(Inputs!$J$122:$J$125,Inputs!T$122:T$125)*Inputs!$L$90*INDEX(IF(Inputs!$H$91="Mid",Inputs!$N$21:$V$21,Inputs!$N$22:$V$22),MATCH(Inputs!$F$91,Inputs!$N$20:$V$20,0)) -> 118662.3 | I55: =SUMPRODUCT(Inputs!$J$122:$J$125,Inputs!U$122:U$125)*Inputs!$L$90*INDEX(IF(Inputs!$H$91="Mid",Inputs!$N$21:$V$21,Inputs!$N$22:$V$22),MATCH(Inputs!$F$91,Inputs!$N$20:$V$20,0)) -> 118662.3 | J55: =SUMPRODUCT(Inputs!$J$122:$J$125,Inputs!V$122:V$125)*Inputs!$L$90*INDEX(IF(Inputs!$H$91="Mid",Inputs!$N$21:$V$21,Inputs!$N$22:$V$22),MATCH(Inputs!$F$91,Inputs!$N$20:$V$20,0)) -> 118662.3 | K55: =SUM(E55:J55) -> 474649.2
B56: =$B$32 -> Labour escalation | C56: =Inputs!$B$8 -> Real $2026 | D56: Dollars | E56: =E55*(Inputs!Q$23-1) -> 0 | F56: =F55*(Inputs!R$23-1) -> 0 | G56: =G55*(Inputs!S$23-1) -> 3833.856871 | H56: =H55*(Inputs!T$23-1) -> 4283.409861 | I56: =I55*(Inputs!U$23-1) -> 4734.612681 | J56: =J55*(Inputs!V$23-1) -> 5187.471387 | K56: =SUM(E56:J56) -> 18039.3508
B57: =$B$33 -> Other | C57: =Inputs!$B$8 -> Real $2026 | D57: Dollars | E57: =SUMPRODUCT(Inputs!$I$122:$I$125,Inputs!X$122:X$125)*INDEX(IF(Inputs!$H$91="Mid",Inputs!$N$21:$V$21,Inputs!$N$22:$V$22),MATCH(Inputs!$F$91,Inputs!$N$20:$V$20,0)) -> 0 | F57: =SUMPRODUCT(Inputs!$I$122:$I$125,Inputs!Y$122:Y$125)*INDEX(IF(Inputs!$H$91="Mid",Inputs!$N$21:$V$21,Inputs!$N$22:$V$22),MATCH(Inputs!$F$91,Inputs!$N$20:$V$20,0)) -> 0 | G57: =SUMPRODUCT(Inputs!$I$122:$I$125,Inputs!Z$122:Z$125)*INDEX(IF(Inputs!$H$91="Mid",Inputs!$N$21:$V$21,Inputs!$N$22:$V$22),MATCH(Inputs!$F$91,Inputs!$N$20:$V$20,0)) -> 433440 | H57: =SUMPRODUCT(Inputs!$I$122:$I$125,Inputs!AA$122:AA$125)*INDEX(IF(Inputs!$H$91="Mid",Inputs!$N$21:$V$21,Inputs!$N$22:$V$22),MATCH(Inputs!$F$91,Inputs!$N$20:$V$20,0)) -> 433440 | I57: =SUMPRODUCT(Inputs!$I$122:$I$125,Inputs!AB$122:AB$125)*INDEX(IF(Inputs!$H$91="Mid",Inputs!$N$21:$V$21,Inputs!$N$22:$V$22),MATCH(Inputs!$F$91,Inputs!$N$20:$V$20,0)) -> 433440 | J57: =SUMPRODUCT(Inputs!$I$122:$I$125,Inputs!AC$122:AC$125)*INDEX(IF(Inputs!$H$91="Mid",Inputs!$N$21:$V$21,Inputs!$N$22:$V$22),MATCH(Inputs!$F$91,Inputs!$N$20:$V$20,0)) -> 433440 | K57: =SUM(E57:J57) -> 1733760
B58: Sub-Total | C58: =Inputs!$B$8 -> Real $2026 | D58: Dollars | E58: =SUM(E55:E57) -> 0 | F58: 0 | G58: 555936.1569 | H58: 556385.7099 | I58: 556836.9127 | J58: 557289.7714 | K58: 2226448.551
B60: Commercial and Regulatory submissions
B61: Labour - Commercial | C61: =Inputs!$B$8 -> Real $2026 | D61: Dollars | E61: =SUMPRODUCT(Inputs!$J$91:$J$95,Inputs!Q$91:Q$95)*Inputs!$L$90*INDEX(IF(Inputs!$H$91="Mid",Inputs!$N$21:$T$21,Inputs!$N$22:$T$22),MATCH(Inputs!$F$91,Inputs!$N$20:$T$20,0)) -> 0 | F61: =SUMPRODUCT(Inputs!$J$91:$J$95,Inputs!R$91:R$95)*Inputs!$L$90*INDEX(IF(Inputs!$H$91="Mid",Inputs!$N$21:$T$21,Inputs!$N$22:$T$22),MATCH(Inputs!$F$91,Inputs!$N$20:$T$20,0)) -> 0 | G61: =SUMPRODUCT(Inputs!$J$91:$J$95,Inputs!S$91:S$95)*Inputs!$L$90*INDEX(IF(Inputs!$H$91="Mid",Inputs!$N$21:$T$21,Inputs!$N$22:$T$22),MATCH(Inputs!$F$91,Inputs!$N$20:$T$20,0)) -> 155573.1048 | H61: =SUMPRODUCT(Inputs!$J$91:$J$95,Inputs!T$91:T$95)*Inputs!$L$90*INDEX(IF(Inputs!$H$91="Mid",Inputs!$N$21:$T$21,Inputs!$N$22:$T$22),MATCH(Inputs!$F$91,Inputs!$N$20:$T$20,0)) -> 2285216.275 | I61: =SUMPRODUCT(Inputs!$J$91:$J$95,Inputs!U$91:U$95)*Inputs!$L$90*INDEX(IF(Inputs!$H$91="Mid",Inputs!$N$21:$T$21,Inputs!$N$22:$T$22),MATCH(Inputs!$F$91,Inputs!$N$20:$T$20,0)) -> 2283686.613 | J61: =SUMPRODUCT(Inputs!$J$91:$J$95,Inputs!V$91:V$95)*Inputs!$L$90*INDEX(IF(Inputs!$H$91="Mid",Inputs!$N$21:$T$21,Inputs!$N$22:$T$22),MATCH(Inputs!$F$91,Inputs!$N$20:$T$20,0)) -> 2282162.543 | K61: =SUM(E61:J61) -> 7006638.535
B62: Labour - Regulatory Submissions | C62: =Inputs!$B$8 -> Real $2026 | D62: Dollars | E62: =SUMPRODUCT(Inputs!$J$127:$J$150,Inputs!Q$127:Q$150)*Inputs!$L$91*INDEX(IF(Inputs!$H$91="Mid",Inputs!$N$21:$V$21,Inputs!$N$22:$V$22),MATCH(Inputs!$F$91,Inputs!$N$20:$V$20,0)) -> 0 | F62: =SUMPRODUCT(Inputs!$J$127:$J$150,Inputs!R$127:R$150)*Inputs!$L$91*INDEX(IF(Inputs!$H$91="Mid",Inputs!$N$21:$V$21,Inputs!$N$22:$V$22),MATCH(Inputs!$F$91,Inputs!$N$20:$V$20,0)) -> 490836.7516 | G62: =SUMPRODUCT(Inputs!$J$127:$J$150,Inputs!S$127:S$150)*Inputs!$L$91*INDEX(IF(Inputs!$H$91="Mid",Inputs!$N$21:$V$21,Inputs!$N$22:$V$22),MATCH(Inputs!$F$91,Inputs!$N$20:$V$20,0)) -> 490836.7516 | H62: =SUMPRODUCT(Inputs!$J$127:$J$150,Inputs!T$127:T$150)*Inputs!$L$91*INDEX(IF(Inputs!$H$91="Mid",Inputs!$N$21:$V$21,Inputs!$N$22:$V$22),MATCH(Inputs!$F$91,Inputs!$N$20:$V$20,0)) -> 490836.7516 | I62: =SUMPRODUCT(Inputs!$J$127:$J$150,Inputs!U$127:U$150)*Inputs!$L$91*INDEX(IF(Inputs!$H$91="Mid",Inputs!$N$21:$V$21,Inputs!$N$22:$V$22),MATCH(Inputs!$F$91,Inputs!$N$20:$V$20,0)) -> 1867756.914 | J62: =SUMPRODUCT(Inputs!$J$127:$J$150,Inputs!V$127:V$150)*Inputs!$L$91*INDEX(IF(Inputs!$H$91="Mid",Inputs!$N$21:$V$21,Inputs!$N$22:$V$22),MATCH(Inputs!$F$91,Inputs!$N$20:$V$20,0)) -> 1278500.466 | K62: =SUM(E62:J62) -> 4618767.635
B63: Labour escalation | C63: =Inputs!$B$8 -> Real $2026 | D63: Dollars | E63: =SUM(E61:E62)*(Inputs!Q$23-1) -> 0 | F63: =SUM(F61:F62)*(Inputs!R$23-1) -> 14338.15054 | G63: =SUM(G61:G62)*(Inputs!S$23-1) -> 20884.83764 | H63: =SUM(H61:H62)*(Inputs!T$23-1) -> 100208.5153 | I63: =SUM(I61:I62)*(Inputs!U$23-1) -> 165642.1388 | J63: =SUM(J61:J62)*(Inputs!V$23-1) -> 155658.8527 | K63: =SUM(E63:J63) -> 456732.495
B64: Sub-Total | C64: =Inputs!$B$8 -> Real $2026 | D64: Dollars | E64: =SUM(E61:E63) -> 0 | F64: 505174.9021 | G64: 667294.6941 | H64: 2876261.541 | I64: 4317085.665 | J64: 3716321.862 | K64: =SUM(E64:J64) -> 12082138.67
B66: =$B$31 -> Labour | C66: =Inputs!$B$8 -> Real $2026 | D66: Dollars | E66: =E31+E37+E43+E49+E55+E61+E62 -> 0 | F66: 490836.7516 | G66: 2004534.159 | H66: 5394438.29 | I66: 6769828.791 | J66: 6179048.273 | K66: =SUM(E66:J66) -> 20838686.26
B67: =$B$32 -> Labour escalation | C67: =Inputs!$B$8 -> Real $2026 | D67: Dollars | E67: =E32+E38+E44+E50+E56+E63 -> 0 | F67: 14338.15054 | G67: 64764.43704 | H67: 194725.6219 | I67: 270115.422 | J67: 270124.8511 | K67: =SUM(E67:J67) -> 814068.4826
B68: =$B$33 -> Other | C68: =Inputs!$B$8 -> Real $2026 | D68: Dollars | E68: =E33+E39+E45+E51+E57 -> 0 | F68: 0 | G68: 464400 | H68: 526320 | I68: 474720 | J68: 464400 | K68: =SUM(E68:J68) -> 1929840
B69: Total operating costs | C69: =Inputs!$B$8 -> Real $2026 | D69: Dollars | E69: =SUM(E66:E68) -> 0 | F69: 505174.9021 | G69: 2533698.596 | H69: =SUM(H66:H68) -> 6115483.912 | I69: =SUM(I66:I68) -> 7514664.213 | J69: =SUM(J66:J68) -> 6913573.125 | K69: 23582594.75
A71: =IF(SUM(E71:J71)=0,0,1) -> 0 | B71: Check - Operating Costs | E71: =IF(ROUND(((Inputs!Q152+Inputs!X152)*INDEX(IF(Inputs!$H$91="Mid",Inputs!$N$21:$V$21,Inputs!$N$22:$V$22),MATCH(Inputs!$F$91,Inputs!$N$20:$V$20,0)))-(E66+E68),3)=0,0,1) -> 0 | F71: =IF(ROUND(((Inputs!R152+Inputs!Y152)*INDEX(IF(Inputs!$H$91="Mid",Inputs!$N$21:$V$21,Inputs!$N$22:$V$22),MATCH(Inputs!$F$91,Inputs!$N$20:$V$20,0)))-(F66+F68),3)=0,0,1) -> 0 | G71: =IF(ROUND(((Inputs!S152+Inputs!Z152)*INDEX(IF(Inputs!$H$91="Mid",Inputs!$N$21:$V$21,Inputs!$N$22:$V$22),MATCH(Inputs!$F$91,Inputs!$N$20:$V$20,0)))-(G66+G68),3)=0,0,1) -> 0 | H71: =IF(ROUND(((Inputs!T152+Inputs!AA152)*INDEX(IF(Inputs!$H$91="Mid",Inputs!$N$21:$V$21,Inputs!$N$22:$V$22),MATCH(Inputs!$F$91,Inputs!$N$20:$V$20,0)))-(H66+H68),3)=0,0,1) -> 0 | I71: =IF(ROUND(((Inputs!U152+Inputs!AB152)*INDEX(IF(Inputs!$H$91="Mid",Inputs!$N$21:$V$21,Inputs!$N$22:$V$22),MATCH(Inputs!$F$91,Inputs!$N$20:$V$20,0)))-(I66+I68),3)=0,0,1) -> 0 | J71: =IF(ROUND(((Inputs!V152+Inputs!AC152)*INDEX(IF(Inputs!$H$91="Mid",Inputs!$N$21:$V$21,Inputs!$N$22:$V$22),MATCH(Inputs!$F$91,Inputs!$N$20:$V$20,0)))-(J66+J68),3)=0,0,1) -> 0
B73: Other Costs | K73: Total
B74: Component | C74: Dollar basis | E74: =Inputs!Q$20 -> 2026 | F74: =Inputs!R$20 -> 2027 | G74: =Inputs!S$20 -> 2028 | H74: =Inputs!T$20 -> 2029 | I74: =Inputs!U$20 -> 2030 | J74: =Inputs!V$20 -> 2031
B75: Insurance costs
B76: =Inputs!B159 -> Annual Insurance Premium - Original Scope of Works | C76: =Inputs!$B$8 -> Real $2026 | D76: Dollars | E76: =Inputs!Q159*INDEX(IF(Inputs!$G159="Mid",Inputs!$M$21:$V$21,Inputs!$M$22:$V$22),MATCH(Inputs!$F159,Inputs!$M$20:$V$20,0)) -> 0 | F76: =Inputs!R159*INDEX(IF(Inputs!$G159="Mid",Inputs!$M$21:$V$21,Inputs!$M$22:$V$22),MATCH(Inputs!$F159,Inputs!$M$20:$V$20,0)) -> 0 | G76: =Inputs!S159*INDEX(IF(Inputs!$G159="Mid",Inputs!$M$21:$V$21,Inputs!$M$22:$V$22),MATCH(Inputs!$F159,Inputs!$M$20:$V$20,0)) -> 315270.521 | H76: =Inputs!T159*INDEX(IF(Inputs!$G159="Mid",Inputs!$M$21:$V$21,Inputs!$M$22:$V$22),MATCH(Inputs!$F159,Inputs!$M$20:$V$20,0)) -> 315270.521 | I76: =Inputs!U159*INDEX(IF(Inputs!$G159="Mid",Inputs!$M$21:$V$21,Inputs!$M$22:$V$22),MATCH(Inputs!$F159,Inputs!$M$20:$V$20,0)) -> 315270.521 | J76: =Inputs!V159*INDEX(IF(Inputs!$G159="Mid",Inputs!$M$21:$V$21,Inputs!$M$22:$V$22),MATCH(Inputs!$F159,Inputs!$M$20:$V$20,0)) -> 315270.521 | K76: =SUM(E76:J76) -> 1261082.084
B77: =Inputs!B160 -> Annual Insurance Premium - BCSS | C77: =Inputs!$B$8 -> Real $2026 | D77: Dollars | E77: =Inputs!Q160*INDEX(IF(Inputs!$G160="Mid",Inputs!$M$21:$V$21,Inputs!$M$22:$V$22),MATCH(Inputs!$F160,Inputs!$M$20:$V$20,0)) -> 0 | F77: =Inputs!R160*INDEX(IF(Inputs!$G160="Mid",Inputs!$M$21:$V$21,Inputs!$M$22:$V$22),MATCH(Inputs!$F160,Inputs!$M$20:$V$20,0)) -> 0 | G77: =Inputs!S160*INDEX(IF(Inputs!$G160="Mid",Inputs!$M$21:$V$21,Inputs!$M$22:$V$22),MATCH(Inputs!$F160,Inputs!$M$20:$V$20,0)) -> 0 | H77: =Inputs!T160*INDEX(IF(Inputs!$G160="Mid",Inputs!$M$21:$V$21,Inputs!$M$22:$V$22),MATCH(Inputs!$F160,Inputs!$M$20:$V$20,0)) -> 0 | I77: =Inputs!U160*INDEX(IF(Inputs!$G160="Mid",Inputs!$M$21:$V$21,Inputs!$M$22:$V$22),MATCH(Inputs!$F160,Inputs!$M$20:$V$20,0)) -> 0 | J77: =Inputs!V160*INDEX(IF(Inputs!$G160="Mid",Inputs!$M$21:$V$21,Inputs!$M$22:$V$22),MATCH(Inputs!$F160,Inputs!$M$20:$V$20,0)) -> 0 | K77: =SUM(E77:J77) -> 0
B78: =Inputs!B161 -> Legal Gov & Risk - Senior (Legal Affairs) | C78: =Inputs!$B$8 -> Real $2026 | D78: Dollars | E78: =Inputs!Q161*INDEX(IF(Inputs!$G161="Mid",Inputs!$M$21:$V$21,Inputs!$M$22:$V$22),MATCH(Inputs!$F161,Inputs!$M$20:$V$20,0)) -> 0 | F78: =Inputs!R161*INDEX(IF(Inputs!$G161="Mid",Inputs!$M$21:$V$21,Inputs!$M$22:$V$22),MATCH(Inputs!$F161,Inputs!$M$20:$V$20,0)) -> 0 | G78: =Inputs!S161*INDEX(IF(Inputs!$G161="Mid",Inputs!$M$21:$V$21,Inputs!$M$22:$V$22),MATCH(Inputs!$F161,Inputs!$M$20:$V$20,0)) -> 0 | H78: =Inputs!T161*INDEX(IF(Inputs!$G161="Mid",Inputs!$M$21:$V$21,Inputs!$M$22:$V$22),MATCH(Inputs!$F161,Inputs!$M$20:$V$20,0)) -> 0 | I78: =Inputs!U161*INDEX(IF(Inputs!$G161="Mid",Inputs!$M$21:$V$21,Inputs!$M$22:$V$22),MATCH(Inputs!$F161,Inputs!$M$20:$V$20,0)) -> 47467.5 | J78: =Inputs!V161*INDEX(IF(Inputs!$G161="Mid",Inputs!$M$21:$V$21,Inputs!$M$22:$V$22),MATCH(Inputs!$F161,Inputs!$M$20:$V$20,0)) -> 0 | K78: =SUM(E78:J78) -> 47467.5
B79: =Inputs!B162 -> Prepare insurance premium cost estimate | C79: =Inputs!$B$8 -> Real $2026 | D79: Dollars | E79: =Inputs!Q162*INDEX(IF(Inputs!$G162="Mid",Inputs!$M$21:$V$21,Inputs!$M$22:$V$22),MATCH(Inputs!$F162,Inputs!$M$20:$V$20,0)) -> 0 | F79: =Inputs!R162*INDEX(IF(Inputs!$G162="Mid",Inputs!$M$21:$V$21,Inputs!$M$22:$V$22),MATCH(Inputs!$F162,Inputs!$M$20:$V$20,0)) -> 0 | G79: =Inputs!S162*INDEX(IF(Inputs!$G162="Mid",Inputs!$M$21:$V$21,Inputs!$M$22:$V$22),MATCH(Inputs!$F162,Inputs!$M$20:$V$20,0)) -> 0 | H79: =Inputs!T162*INDEX(IF(Inputs!$G162="Mid",Inputs!$M$21:$V$21,Inputs!$M$22:$V$22),MATCH(Inputs!$F162,Inputs!$M$20:$V$20,0)) -> 0 | I79: =Inputs!U162*INDEX(IF(Inputs!$G162="Mid",Inputs!$M$21:$V$21,Inputs!$M$22:$V$22),MATCH(Inputs!$F162,Inputs!$M$20:$V$20,0)) -> 10039.3625 | J79: =Inputs!V162*INDEX(IF(Inputs!$G162="Mid",Inputs!$M$21:$V$21,Inputs!$M$22:$V$22),MATCH(Inputs!$F162,Inputs!$M$20:$V$20,0)) -> 0 | K79: =SUM(E79:J79) -> 10039.3625
B80: Sub-Total | C80: =Inputs!$B$8 -> Real $2026 | D80: Dollars | E80: =SUM(E76:E79) -> 0 | F80: 0 | G80: 315270.521 | H80: 315270.521 | I80: 372777.3835 | J80: 315270.521 | K80: =SUM(E80:J80) -> 1318588.946
B81: Strategic Benefits Payments
B82: =Inputs!B169 -> Annual payments to landholders | C82: =Inputs!$B$8 -> Real $2026 | D82: Dollars | E82: [C-i-C] | F82: [C-i-C] | G82: [C-i-C] | H82: [C-i-C] | I82: [C-i-C] | J82: [C-i-C] | K82: [C-i-C]
B83: =Inputs!B170 -> Administering the payments | C83: =Inputs!$B$8 -> Real $2026 | D83: Dollars | E83: [C-i-C] | F83: [C-i-C] | G83: [C-i-C] | H83: [C-i-C] | I83: [C-i-C] | J83: [C-i-C] | K83: [C-i-C]
B84: Sub-Total | C84: =Inputs!$B$8 -> Real $2026 | D84: Dollars | E84: 0 | F84: 0 | G84: 68233.67323 | H84: 204707.4156 | I84: 204707.4156 | J84: 204707.4156 | K84: 682355.9201
B85: Vegetation Integrity Rehabilitation Costs
B86: =Inputs!B177 -> Labour | C86: =Inputs!$B$8 -> Real $2026 | D86: Dollars | E86: [C-i-C] | F86: [C-i-C] | G86: [C-i-C] | H86: [C-i-C] | I86: [C-i-C] | J86: [C-i-C] | K86: [C-i-C]
B87: =Inputs!B178 -> Contracted Labour | C87: =Inputs!$B$8 -> Real $2026 | D87: Dollars | E87: [C-i-C] | F87: [C-i-C] | G87: [C-i-C] | H87: [C-i-C] | I87: [C-i-C] | J87: [C-i-C] | K87: [C-i-C]
B88: Labour escalation | C88: =Inputs!$B$8 -> Real $2026 | D88: Dollars | E88: [C-i-C] | F88: [C-i-C] | G88: [C-i-C] | H88: [C-i-C] | I88: [C-i-C] | J88: [C-i-C] | K88: [C-i-C]
B89: Sub-Total | C89: =Inputs!$B$8 -> Real $2026 | D89: Dollars | E89: 0 | F89: 142670.9532 | G89: 142916.133 | H89: 143216.0259 | I89: 143517.0194 | J89: 143819.1176 | K89: 716139.249
B91: Total costs (excluding debt raising costs) | C91: =Inputs!$B$8 -> Real $2026 | D91: Dollars | E91: =E22+E69+E80+E84+E89 -> 0 | F91: =F22+F69+F80+F84+F89 -> 647845.8553 | G91: 3156437.201 | H91: 7310293.684 | I91: 9028939.076 | J91: 7763117.395 | K91: 27906633.21
B93: Debt raising costs | C93: =Inputs!$B$8 -> Real $2026 | D93: Dollars | E93: =Inputs!Q$185*INDEX(IF(Inputs!$G$185="Mid",Inputs!$N$21:$V$21,Inputs!$N$22:$V$22),MATCH(Inputs!$F$185,Inputs!$N$20:$V$20,0)) -> 0 | F93: =Inputs!R$185*INDEX(IF(Inputs!$G$185="Mid",Inputs!$N$21:$V$21,Inputs!$N$22:$V$22),MATCH(Inputs!$F$185,Inputs!$N$20:$V$20,0)) -> 83350.43848 | G93: =Inputs!S$185*INDEX(IF(Inputs!$G$185="Mid",Inputs!$N$21:$V$21,Inputs!$N$22:$V$22),MATCH(Inputs!$F$185,Inputs!$N$20:$V$20,0)) -> 156184.8717 | H93: =Inputs!T$185*INDEX(IF(Inputs!$G$185="Mid",Inputs!$N$21:$V$21,Inputs!$N$22:$V$22),MATCH(Inputs!$F$185,Inputs!$N$20:$V$20,0)) -> 210492.4995 | I93: =Inputs!U$185*INDEX(IF(Inputs!$G$185="Mid",Inputs!$N$21:$V$21,Inputs!$N$22:$V$22),MATCH(Inputs!$F$185,Inputs!$N$20:$V$20,0)) -> 208461.8358 | J93: =Inputs!V$185*INDEX(IF(Inputs!$G$185="Mid",Inputs!$N$21:$V$21,Inputs!$N$22:$V$22),MATCH(Inputs!$F$185,Inputs!$N$20:$V$20,0)) -> 202177.7715 | K93: =SUM(E93:J93) -> 860667.4169
B95: Total costs (including debt raising costs) | C95: =Inputs!$B$8 -> Real $2026 | D95: Dollars | E95: =E91+E93 -> 0 | F95: 731196.2938 | G95: 3312622.072 | H95: 7520786.184 | I95: 9237400.912 | J95: 7965295.167 | K95: =SUM(E95:J95) -> 28767300.63
B97: End

Sheet Outputs
A1: Outputs
B3: PTRM and Proposal
B5: Operating Costs | K5: Total | L5: Total
B6: Component | C6: Dollar basis | D6: Units | E6: =Inputs!Q$20 -> 2026 | F6: =Inputs!R$20 -> 2027 | G6: =Inputs!S$20 -> 2028 | H6: =Inputs!T$20 -> 2029 | I6: =Inputs!U$20 -> 2030 | J6: =Inputs!V$20 -> 2031 | K6: Next period | L6: All years
B8: Costs
B9: Maintenance costs (excl labour escalation) | C9: =Inputs!$B$8 -> Real $2026 | D9: $Million | E9: =(Calculations!E22-Calculations!E20)/10^6 -> 0 | F9: =(Calculations!F22-Calculations!F20)/10^6 -> 0 | G9: =(Calculations!G22-Calculations!G20)/10^6 -> 0.09422975401 | H9: =(Calculations!H22-Calculations!H20)/10^6 -> 0.5165609811 | I9: =(Calculations!I22-Calculations!I20)/10^6 -> 0.7788529732 | J9: =(Calculations!J22-Calculations!J20)/10^6 -> 0.1819469191 | K9: =SUM(F9:J9) -> 1.571590627 | L9: =SUM(E9:J9) -> 1.571590627
B10: Operating Costs (excl labour escalation) | C10: =Inputs!$B$8 -> Real $2026 | D10: $Million | E10: =(Calculations!E69-Calculations!E67)/10^6 -> 0 | F10: =(Calculations!F69-Calculations!F67)/10^6 -> 0.4908367516 | G10: =(Calculations!G69-Calculations!G67)/10^6 -> 2.468934159 | H10: =(Calculations!H69-Calculations!H67)/10^6 -> 5.92075829 | I10: =(Calculations!I69-Calculations!I67)/10^6 -> 7.244548791 | J10: =(Calculations!J69-Calculations!J67)/10^6 -> 6.643448273 | K10: =SUM(F10:J10) -> 22.76852626 | L10: =SUM(E10:J10) -> 22.76852626
B11: Strategic Benefit Payments | C11: =Inputs!$B$8 -> Real $2026 | D11: $Million | E11: =Calculations!E84/10^6 -> 0 | F11: =Calculations!F84/10^6 -> 0 | G11: =Calculations!G84/10^6 -> 0.06823367323 | H11: =Calculations!H84/10^6 -> 0.2047074156 | I11: =Calculations!I84/10^6 -> 0.2047074156 | J11: =Calculations!J84/10^6 -> 0.2047074156 | K11: =SUM(F11:J11) -> 0.6823559201 | L11: =SUM(E11:J11) -> 0.6823559201
B12: Insurance Costs | C12: =Inputs!$B$8 -> Real $2026 | D12: $Million | E12: =Calculations!E80/10^6 -> 0 | F12: =Calculations!F80/10^6 -> 0 | G12: =Calculations!G80/10^6 -> 0.315270521 | H12: =Calculations!H80/10^6 -> 0.315270521 | I12: =Calculations!I80/10^6 -> 0.3727773835 | J12: =Calculations!J80/10^6 -> 0.315270521 | K12: 1.318588946 | L12: 1.318588946
B13: Vegetation Integrity Rehabilitation Costs | C13: =Inputs!$B$8 -> Real $2026 | D13: $Million | E13: 0 | F13: 0.1403586 | G13: 0.1403586 | H13: 0.1403586 | I13: 0.1403586 | J13: 0.1403586 | K13: =SUM(F13:J13) -> 0.701793 | L13: =SUM(E13:J13) -> 0.701793
B14: Real input cost escalation | C14: =Inputs!$B$8 -> Real $2026 | D14: $Million | E14: 0 | F14: 0.01665050372 | G14: 0.06941049334 | H14: 0.2126378764 | I14: 0.2876939129 | J14: 0.2773856659 | K14: 0.8637784524 | L14: 0.8637784524
B16: Total (excluding debt raising costs) | C16: =Inputs!$B$8 -> Real $2026 | D16: $Million | E16: =SUM(E9:E14) -> 0 | F16: 0.6478458553 | G16: 3.156437201 | H16: 7.310293684 | I16: 9.028939076 | J16: 7.763117395 | K16: 27.90663321 | L16: 27.90663321
B18: Debt Raising Costs | C18: =Inputs!$B$8 -> Real $2026 | D18: $Million | E18: =Calculations!E93/10^6 -> 0 | F18: =Calculations!F93/10^6 -> 0.08335043848 | G18: =Calculations!G93/10^6 -> 0.1561848717 | H18: =Calculations!H93/10^6 -> 0.2104924995 | I18: =Calculations!I93/10^6 -> 0.2084618358 | J18: =Calculations!J93/10^6 -> 0.2021777715 | K18: 0.8606674169 | L18: 0.8606674169
B20: Total (including debt raising costs) | C20: =Inputs!$B$8 -> Real $2026 | D20: $Million | E20: =E16+E18 -> 0 | F20: 0.7311962938 | G20: 3.312622072 | H20: 7.520786184 | I20: 9.237400912 | J20: 7.965295167 | K20: 28.76730063 | L20: 28.76730063
A22: =IF(SUM(E22:J22)=0,0,1) -> 0 | B22: Check - Calculations | E22: =IF(ROUND(E16-Calculations!E91/10^6,3)=0,0,1) -> 0 | F22: =IF(ROUND(F16-Calculations!F91/10^6,3)=0,0,1) -> 0 | G22: =IF(ROUND(G16-Calculations!G91/10^6,3)=0,0,1) -> 0 | H22: =IF(ROUND(H16-Calculations!H91/10^6,3)=0,0,1) -> 0 | I22: =IF(ROUND(I16-Calculations!I91/10^6,3)=0,0,1) -> 0 | J22: =IF(ROUND(J16-Calculations!J91/10^6,3)=0,0,1) -> 0
K24: Total | L24: Total
B25: Maintenance costs (excl labour escalation) | C25: Dollar basis | D25: Units | E25: =Inputs!Q$20 -> 2026 | F25: =Inputs!R$20 -> 2027 | G25: =Inputs!S$20 -> 2028 | H25: =Inputs!T$20 -> 2029 | I25: =Inputs!U$20 -> 2030 | J25: =Inputs!V$20 -> 2031 | K25: Next period | L25: All years
B27: Transmission lines | C27: =Inputs!$B$8 -> Real $2026 | D27: $Million | E27: =(Calculations!E16-Calculations!E14)/10^6 -> 0 | F27: =(Calculations!F16-Calculations!F14)/10^6 -> 0 | G27: =(Calculations!G16-Calculations!G14)/10^6 -> 0 | H27: =(Calculations!H16-Calculations!H14)/10^6 -> 0.07395777312 | I27: =(Calculations!I16-Calculations!I14)/10^6 -> 0.4444526275 | J27: =(Calculations!J16-Calculations!J14)/10^6 -> 0.07395777312 | K27: =SUM(F27:J27) -> 0.5923681737 | L27: =SUM(E27:J27) -> 0.5923681737
B28: Substations | C28: =Inputs!$B$8 -> Real $2026 | D28: $Million | E28: =(Calculations!E10-Calculations!E8)/10^6 -> 0 | F28: =(Calculations!F10-Calculations!F8)/10^6 -> 0 | G28: =(Calculations!G10-Calculations!G8)/10^6 -> 0.09422975401 | H28: =(Calculations!H10-Calculations!H8)/10^6 -> 0.442603208 | I28: =(Calculations!I10-Calculations!I8)/10^6 -> 0.3344003458 | J28: =(Calculations!J10-Calculations!J8)/10^6 -> 0.1079891459 | K28: =SUM(F28:J28) -> 0.9792224537 | L28: =SUM(E28:J28) -> 0.9792224537
B30: Total (excluding labour escalation) | C30: =Inputs!$B$8 -> Real $2026 | D30: $Million | E30: =SUM(E27:E28) -> 0 | F30: 0 | G30: 0.09422975401 | H30: 0.5165609811 | I30: 0.7788529732 | J30: 0.1819469191 | K30: =SUM(F30:J30) -> 1.571590627 | L30: =SUM(E30:J30) -> 1.571590627
A32: =IF(SUM(E32:J32)=0,0,1) -> 0 | B32: Check - Reconciliation | E32: =IF(ROUND(E30-E9,3)=0,0,1) -> 0 | F32: 0 | G32: 0 | H32: 0 | I32: 0 | J32: 0
K34: Total | L34: Total
B35: Operating costs (excl labour escalation) | C35: Dollar basis | D35: Units | E35: =Inputs!Q$20 -> 2026 | F35: =Inputs!R$20 -> 2027 | G35: =Inputs!S$20 -> 2028 | H35: =Inputs!T$20 -> 2029 | I35: =Inputs!U$20 -> 2030 | J35: =Inputs!V$20 -> 2031 | K35: Next period | L35: All years
B37: Asset management | C37: =Inputs!$B$8 -> Real $2026 | D37: $Million | E37: =(Calculations!E34-Calculations!E32)/10^6 -> 0 | F37: =(Calculations!F34-Calculations!F32)/10^6 -> 0 | G37: =(Calculations!G34-Calculations!G32)/10^6 -> 0.270306 | H37: =(Calculations!H34-Calculations!H32)/10^6 -> 0.540612 | I37: =(Calculations!I34-Calculations!I32)/10^6 -> 0.540612 | J37: =(Calculations!J34-Calculations!J32)/10^6 -> 0.540612 | K37: =SUM(F37:J37) -> 1.892142 | L37: =SUM(E37:J37) -> 1.892142
B38: Network planning | C38: =Inputs!$B$8 -> Real $2026 | D38: $Million | E38: =(Calculations!E46-Calculations!E44)/10^6 -> 0 | F38: =(Calculations!F46-Calculations!F44)/10^6 -> 0 | G38: =(Calculations!G46-Calculations!G44)/10^6 -> 0.30321216 | H38: =(Calculations!H46-Calculations!H44)/10^6 -> 0.60642432 | I38: =(Calculations!I46-Calculations!I44)/10^6 -> 0.60642432 | J38: =(Calculations!J46-Calculations!J44)/10^6 -> 0.60642432 | K38: 2.12248512 | L38: 2.12248512
B39: Network operations | C39: =Inputs!$B$8 -> Real $2026 | D39: $Million | E39: =(Calculations!E52-Calculations!E50)/10^6 -> 0 | F39: =(Calculations!F52-Calculations!F50)/10^6 -> 0 | G39: =(Calculations!G52-Calculations!G50)/10^6 -> 0.552155022 | H39: =(Calculations!H52-Calculations!H50)/10^6 -> 1.104310044 | I39: =(Calculations!I52-Calculations!I50)/10^6 -> 1.104310044 | J39: =(Calculations!J52-Calculations!J50)/10^6 -> 1.104310044 | K39: 3.865085154 | L39: 3.865085154
B40: Commercial contract management | C40: =Inputs!$B$8 -> Real $2026 | D40: $Million | E40: =Calculations!E61/10^6 -> 0 | F40: =Calculations!F61/10^6 -> 0 | G40: =Calculations!G61/10^6 -> 0.1555731048 | H40: =Calculations!H61/10^6 -> 2.285216275 | I40: =Calculations!I61/10^6 -> 2.283686613 | J40: =Calculations!J61/10^6 -> 2.282162543 | K40: 7.006638535 | L40: 7.006638535
B41: Regulatory submissions | C41: =Inputs!$B$8 -> Real $2026 | D41: $Million | E41: =Calculations!E62/10^6 -> 0 | F41: =Calculations!F62/10^6 -> 0.4908367516 | G41: =Calculations!G62/10^6 -> 0.4908367516 | H41: =Calculations!H62/10^6 -> 0.4908367516 | I41: =Calculations!I62/10^6 -> 1.867756914 | J41: =Calculations!J62/10^6 -> 1.278500466 | K41: 4.618767635 | L41: 4.618767635
B42: Others | C42: =Inputs!$B$8 -> Real $2026 | D42: $Million | E42: =(Calculations!E40-Calculations!E38+Calculations!E58-Calculations!E56)/10^6 -> 0 | F42: =(Calculations!F40-Calculations!F38+Calculations!F58-Calculations!F56)/10^6 -> 0 | G42: =(Calculations!G40-Calculations!G38+Calculations!G58-Calculations!G56)/10^6 -> 0.6968511205 | H42: =(Calculations!H40-Calculations!H38+Calculations!H58-Calculations!H56)/10^6 -> 0.8933589 | I42: =(Calculations!I40-Calculations!I38+Calculations!I58-Calculations!I56)/10^6 -> 0.8417589 | J42: =(Calculations!J40-Calculations!J38+Calculations!J58-Calculations!J56)/10^6 -> 0.8314389 | K42: 3.263407821 | L42: 3.263407821 | M42: Note: Delivery plus Finance and Audit cost categories
B44: Total (excluding labour escalation) | C44: =Inputs!$B$8 -> Real $2026 | D44: $Million | E44: =SUM(E37:E42) -> 0 | F44: 0.4908367516 | G44: 2.468934159 | H44: 5.92075829 | I44: 7.244548791 | J44: 6.643448273 | K44: =SUM(F44:J44) -> 22.76852626 | L44: =SUM(E44:J44) -> 22.76852626
A46: =IF(SUM(E46:J46)=0,0,1) -> 0 | B46: Check - Reconciliation | E46: =IF(ROUND(E44-E10,3)=0,0,1) -> 0 | F46: 0 | G46: 0 | H46: 0 | I46: 0 | J46: 0
B49: RIN Template
B51: Table 6.1: Non-network expenditure (real $m, Jun 2026) | E51: Pre-period (EnergyCo funded costs) | J51: 2026-31 regulatory control period (excluding IPFs) | O51: =K$5 -> Total | P51: =L$5 -> Total
E52: =LEFT(F52,2)&RIGHT(F52,2)-1 -> 2022 | F52: =LEFT(G52,2)&RIGHT(G52,2)-1 -> 2023 | G52: =LEFT(H52,2)&RIGHT(H52,2)-1 -> 2024 | H52: =LEFT(I52,2)&RIGHT(I52,2)-1 -> 2025 | I52: =E$6 -> 2026 | J52: 2027 | K52: 2028 | L52: 2029 | M52: 2030 | N52: 2031 | O52: Next period | P52: All years
B54: Costs
B55: IT & Communications | C55: =Inputs!$B$8 -> Real $2026 | D55: $Million | O55: =SUM(J55:N55) -> 0 | P55: =SUM(E55:N55) -> 0
B56: Motor Vehicles | C56: =Inputs!$B$8 -> Real $2026 | D56: $Million | O56: 0 | P56: =SUM(E56:N56) -> 0
B57: Buildings and Property | C57: =Inputs!$B$8 -> Real $2026 | D57: $Million | O57: 0 | P57: =SUM(E57:N57) -> 0
B58: Other | C58: =Inputs!$B$8 -> Real $2026 | D58: $Million | E58: =E62*E63 -> 0 | F58: =F62*F63 -> 0 | G58: =G62*G63 -> 0 | H58: =H62*H63 -> 0 | I58: =I62*I63 -> 0 | J58: 0.1943537566 | K58: 0.6836836389 | L58: 1.849348547 | M58: 2.267786281 | N58: 2.005117058 | O58: 7.000289283 | P58: =SUM(E58:N58) -> 7.000289283 | R58: Note: Includes opex support costs or overheads
D59: $Million
B60: Total non-network opex | C60: =Inputs!$B$8 -> Real $2026 | D60: $Million | E60: =SUM(E55:E58) -> 0 | F60: =SUM(F55:F58) -> 0 | G60: =SUM(G55:G58) -> 0 | H60: =SUM(H55:H58) -> 0 | I60: =SUM(I55:I58) -> 0 | J60: 0.1943537566 | K60: 0.6836836389 | L60: 1.849348547 | M60: 2.267786281 | N60: 2.005117058 | O60: 7.000289283 | P60: =SUM(E60:N60) -> 7.000289283
B62: Total labour costs | C62: Real $2024 | D62: $Million | I62: =(Calculations!E7+Calculations!E8+Calculations!E13+Calculations!E14+Calculations!E31+Calculations!E32+Calculations!E37+Calculations!E38+Calculations!E43+Calculations!E44+Calculations!E49+Calculations!E50+Calculations!E55+Calculations!E56+Calculations!E64+Calculations!E89)/10^6 -> 0 | J62: =(Calculations!F7+Calculations!F8+Calculations!F13+Calculations!F14+Calculations!F31+Calculations!F32+Calculations!F37+Calculations!F38+Calculations!F43+Calculations!F44+Calculations!F49+Calculations!F50+Calculations!F55+Calculations!F56+Calculations!F64+Calculations!F89)/10^6 -> 0.6478458553 | K62: =(Calculations!G7+Calculations!G8+Calculations!G13+Calculations!G14+Calculations!G31+Calculations!G32+Calculations!G37+Calculations!G38+Calculations!G43+Calculations!G44+Calculations!G49+Calculations!G50+Calculations!G55+Calculations!G56+Calculations!G64+Calculations!G89)/10^6 -> 2.278945463 | L62: =(Calculations!H7+Calculations!H8+Calculations!H13+Calculations!H14+Calculations!H31+Calculations!H32+Calculations!H37+Calculations!H38+Calculations!H43+Calculations!H44+Calculations!H49+Calculations!H50+Calculations!H55+Calculations!H56+Calculations!H64+Calculations!H89)/10^6 -> 6.164495158 | M62: =(Calculations!I7+Calculations!I8+Calculations!I13+Calculations!I14+Calculations!I31+Calculations!I32+Calculations!I37+Calculations!I38+Calculations!I43+Calculations!I44+Calculations!I49+Calculations!I50+Calculations!I55+Calculations!I56+Calculations!I64+Calculations!I89)/10^6 -> 7.559287604 | N62: =(Calculations!J7+Calculations!J8+Calculations!J13+Calculations!J14+Calculations!J31+Calculations!J32+Calculations!J37+Calculations!J38+Calculations!J43+Calculations!J44+Calculations!J49+Calculations!J50+Calculations!J55+Calculations!J56+Calculations!J64+Calculations!J89)/10^6 -> 6.683723528
B63: Non network support cost share of total labour costs | C63: N/A | D63: Percent | I63: 0.3 | J63: 0.3 | K63: 0.3 | L63: 0.3 | M63: 0.3 | N63: 0.3
B65: 9.1 Operating and maintenance costs by category (real $, Jun 2026) | E65: Pre-period (EnergyCo funded costs) | J65: 2026-31 regulatory control period (excluding IPFs) | O65: =K$5 -> Total | P65: =L$5 -> Total
E66: =LEFT(F66,2)&RIGHT(F66,2)-1 -> 2022 | F66: =LEFT(G66,2)&RIGHT(G66,2)-1 -> 2023 | G66: =LEFT(H66,2)&RIGHT(H66,2)-1 -> 2024 | H66: =LEFT(I66,2)&RIGHT(I66,2)-1 -> 2025 | I66: =E$6 -> 2026 | J66: 2027 | K66: 2028 | L66: 2029 | M66: 2030 | N66: 2031 | O66: Next period | P66: All years
B68: Costs
B69: Maintenance costs | C69: =Inputs!$B$8 -> Real $2026 | D69: $Dollars | I69: =Calculations!E10+Calculations!E16 -> 0 | J69: =Calculations!F10+Calculations!F16 -> 0 | K69: =Calculations!G10+Calculations!G16 -> 96318.27735 | L69: =Calculations!H10+Calculations!H16 -> 531615.8097 | M69: =Calculations!I10+Calculations!I16 -> 793273.0448 | N69: =Calculations!J10+Calculations!J16 -> 185747.2163 | O69: =SUM(J69:N69) -> 1606954.348 | P69: =SUM(E69:N69) -> 1606954.348
B70: Operating Costs | C70: =Inputs!$B$8 -> Real $2026 | D70: $Dollars | I70: =Calculations!E34+Calculations!E40+Calculations!E46+Calculations!E52+Calculations!E58+Calculations!E64 -> 0 | J70: =Calculations!F34+Calculations!F40+Calculations!F46+Calculations!F52+Calculations!F58+Calculations!F64 -> 505174.9021 | K70: =Calculations!G34+Calculations!G40+Calculations!G46+Calculations!G52+Calculations!G58+Calculations!G64 -> 2533698.596 | L70: =Calculations!H34+Calculations!H40+Calculations!H46+Calculations!H52+Calculations!H58+Calculations!H64 -> 6115483.912 | M70: =Calculations!I34+Calculations!I40+Calculations!I46+Calculations!I52+Calculations!I58+Calculations!I64 -> 7514664.213 | N70: =Calculations!J34+Calculations!J40+Calculations!J46+Calculations!J52+Calculations!J58+Calculations!J64 -> 6913573.125 | O70: 23582594.75 | P70: =SUM(E70:N70) -> 23582594.75 | R70: Note: Includes the following operating cost categories 'Commercial contract management', 'Asset Management', 'Delivery', 'Network planning', 'Network operations', 'Finance and Audit' and 'Regulatory submissions'
B71: =B11 -> Strategic Benefit Payments | C71: =Inputs!$B$8 -> Real $2026 | D71: $Dollars | I71: =Calculations!E84 -> 0 | J71: =Calculations!F84 -> 0 | K71: =Calculations!G84 -> 68233.67323 | L71: =Calculations!H84 -> 204707.4156 | M71: =Calculations!I84 -> 204707.4156 | N71: =Calculations!J84 -> 204707.4156 | O71: 682355.9201 | P71: 682355.9201
B72: =B12 -> Insurance Costs | C72: =Inputs!$B$8 -> Real $2026 | D72: $Dollars | I72: =Calculations!E80 -> 0 | J72: =Calculations!F80 -> 0 | K72: =Calculations!G80 -> 315270.521 | L72: =Calculations!H80 -> 315270.521 | M72: =Calculations!I80 -> 372777.3835 | N72: =Calculations!J80 -> 315270.521 | O72: 1318588.946 | P72: 1318588.946
B73: =B13 -> Vegetation Integrity Rehabilitation Costs | C73: =Inputs!$B$8 -> Real $2026 | D73: $Dollars | I73: =Calculations!E89 -> 0 | J73: =Calculations!F89 -> 142670.9532 | K73: =Calculations!G89 -> 142916.133 | L73: =Calculations!H89 -> 143216.0259 | M73: =Calculations!I89 -> 143517.0194 | N73: =Calculations!J89 -> 143819.1176 | O73: 716139.249 | P73: =SUM(E73:N73) -> 716139.249
B74: Other | C74: =Inputs!$B$8 -> Real $2026 | D74: $Dollars | I74: =Calculations!E93 -> 0 | J74: =Calculations!F93 -> 83350.43848 | K74: =Calculations!G93 -> 156184.8717 | L74: =Calculations!H93 -> 210492.4995 | M74: =Calculations!I93 -> 208461.8358 | N74: =Calculations!J93 -> 202177.7715 | O74: 860667.4169 | P74: =SUM(E74:N74) -> 860667.4169 | R74: Note: Includes debt raising costs
D75: $Dollars
B76: Total opex (Including Debt Raising Costs) | C76: =Inputs!$B$8 -> Real $2026 | D76: $Dollars | E76: =SUM(E69:E74) -> 0 | F76: =SUM(F69:F74) -> 0 | G76: =SUM(G69:G74) -> 0 | H76: =SUM(H69:H74) -> 0 | I76: =SUM(I69:I74) -> 0 | J76: 731196.2938 | K76: 3312622.072 | L76: 7520786.184 | M76: 9237400.912 | N76: 7965295.167 | O76: =SUM(J76:N76) -> 28767300.63 | P76: 28767300.63 | R76: Note: All operating expenditure tables reported in the RIN include debt raising costs
A78: =IF(SUM(E78:N78)=0,0,1) -> 0 | B78: Check - Opex (incl DRC) | I78: =IF(ROUND(I76/10^6-E$20,3)=0,0,1) -> 0 | J78: 0 | K78: 0 | L78: 0 | M78: 0 | N78: 0
B80: 9.2 Operating and maintenance direct and indirect costs (real $, Jun 2026) | E80: =E$65 -> Pre-period (EnergyCo funded costs) | J80: =J$65 -> 2026-31 regulatory control period (excluding IPFs) | O80: =K$5 -> Total | P80: =L$5 -> Total
E81: =LEFT(F81,2)&RIGHT(F81,2)-1 -> 2022 | F81: =LEFT(G81,2)&RIGHT(G81,2)-1 -> 2023 | G81: =LEFT(H81,2)&RIGHT(H81,2)-1 -> 2024 | H81: =LEFT(I81,2)&RIGHT(I81,2)-1 -> 2025 | I81: =E$6 -> 2026 | J81: 2027 | K81: 2028 | L81: 2029 | M81: 2030 | N81: 2031 | O81: Next period | P81: All years
B83: Costs
B84: Operating and maintenance direct costs | C84: =Inputs!$B$8 -> Real $2026 | D84: $Dollars | I84: =Calculations!E22+((Calculations!E69+Calculations!E64)*I$89) -> 0 | J84: =Calculations!F22+((Calculations!F69+Calculations!F64)*J$89) -> 707244.863 | K84: =Calculations!G22+((Calculations!G69+Calculations!G64)*K$89) -> 2337013.58 | L84: =Calculations!H22+((Calculations!H69+Calculations!H64)*L$89) -> 6825837.627 | M84: =Calculations!I22+((Calculations!I69+Calculations!I64)*M$89) -> 9075497.959 | N84: =Calculations!J22+((Calculations!J69+Calculations!J64)*N$89) -> 7626673.707 | O84: =SUM(J84:N84) -> 26572267.74 | P84: =SUM(E84:N84) -> 26572267.74 | R84: Note: Includes 100% of the maintenance costs plus 70% of operating cost labour
B85: Operating and maintenance indirect costs | C85: =Inputs!$B$8 -> Real $2026 | D85: $Dollars | I85: =Calculations!E95-I84 -> 0 | J85: =Calculations!F95-J84 -> 23951.43081 | K85: =Calculations!G95-K84 -> 975608.4918 | L85: =Calculations!H95-L84 -> 694948.5566 | M85: =Calculations!I95-M84 -> 161902.9523 | N85: =Calculations!J95-N84 -> 338621.4595 | O85: =SUM(J85:N85) -> 2195032.891 | P85: =SUM(E85:N85) -> 2195032.891 | R85: Note: Includes all other opex excluding the direct costs above
B87: Total operating costs | C87: =Inputs!$B$8 -> Real $2026 | D87: $Dollars | E87: =SUM(E82:E85) -> 0 | F87: =SUM(F82:F85) -> 0 | G87: =SUM(G82:G85) -> 0 | H87: =SUM(H82:H85) -> 0 | I87: =SUM(I82:I85) -> 0 | J87: 731196.2938 | K87: 3312622.072 | L87: 7520786.184 | M87: 9237400.912 | N87: 7965295.167 | O87: =SUM(J87:N87) -> 28767300.63 | P87: =SUM(E87:N87) -> 28767300.63
B89: Direct share of total labour costs | C89: N/A | D89: Percent | I89: 0.7 | J89: 0.7 | K89: 0.7 | L89: 0.7 | M89: 0.7 | N89: 0.7
A90: =IF(SUM(E90:N90)=0,0,1) -> 0 | B90: Check - Opex (incl DRC) | I90: =IF(ROUND(I87/10^6-E$20,3)=0,0,1) -> 0 | J90: 0 | K90: 0 | L90: 0 | M90: 0 | N90: 0
B92: 9.3 Operating and maintenance direct and indirect costs (real $, June 2026) | E92: =E$65 -> Pre-period (EnergyCo funded costs) | J92: =J$65 -> 2026-31 regulatory control period (excluding IPFs) | O92: =K$5 -> Total | P92: =L$5 -> Total
E93: =LEFT(F93,2)&RIGHT(F93,2)-1 -> 2022 | F93: =LEFT(G93,2)&RIGHT(G93,2)-1 -> 2023 | G93: =LEFT(H93,2)&RIGHT(H93,2)-1 -> 2024 | H93: =LEFT(I93,2)&RIGHT(I93,2)-1 -> 2025 | I93: =E$6 -> 2026 | J93: 2027 | K93: 2028 | L93: 2029 | M93: 2030 | N93: 2031 | O93: Next period | P93: All years
B95: Costs
B96: Transmission lines - new infrastructure | C96: =Inputs!$B$8 -> Real $2026 | D96: $Million | I96: =Calculations!E16 -> 0 | J96: =Calculations!F16 -> 0 | K96: =Calculations!G16 -> 0 | L96: =Calculations!H16 -> 74267.31646 | M96: =Calculations!I16 -> 446760.2509 | N96: =Calculations!J16 -> 74332.64905 | O96: =SUM(J96:N96) -> 595360.2164 | P96: =SUM(E96:N96) -> 595360.2164 | R96: Note: 100% of transmission line maintenance opex
B97: Towers - new infrastructure | C97: =Inputs!$B$8 -> Real $2026 | D97: $Million | O97: =SUM(J97:N97) -> 0 | P97: =SUM(E97:N97) -> 0
B98: Transmission lines - augmentation | C98: =Inputs!$B$8 -> Real $2026 | D98: $Million | O98: 0 | P98: 0
B99: Towers - augmentation | C99: =Inputs!$B$8 -> Real $2026 | D99: $Million | O99: 0 | P99: 0
B100: Switching station(s) | C100: =Inputs!$B$8 -> Real $2026 | D100: $Million | O100: 0 | P100: 0
B101: Ancillary equipment | C101: =Inputs!$B$8 -> Real $2026 | D101: $Million | O101: 0 | P101: 0
B102: Substation(s) | C102: =Inputs!$B$8 -> Real $2026 | D102: $Million | I102: =Calculations!E10 -> 0 | J102: =Calculations!F10 -> 0 | K102: =Calculations!G10 -> 96318.27735 | L102: =Calculations!H10 -> 457348.4933 | M102: =Calculations!I10 -> 346512.7939 | N102: =Calculations!J10 -> 111414.5673 | O102: 1011594.132 | P102: 1011594.132 | R102: Note: 100% of substation maintenance opex
B103: Other | C103: =Inputs!$B$8 -> Real $2026 | D103: $Million | I103: =Calculations!E95-SUM(I96:I102) -> 0 | J103: =Calculations!F95-SUM(J96:J102) -> 731196.2938 | K103: =Calculations!G95-SUM(K96:K102) -> 3216303.795 | L103: =Calculations!H95-SUM(L96:L102) -> 6989170.374 | M103: =Calculations!I95-SUM(M96:M102) -> 8444127.867 | N103: =Calculations!J95-SUM(N96:N102) -> 7779547.95 | O103: 27160346.28 | P103: 27160346.28 | R103: Note: Contains remaining opex
B105: Total operating costs | C105: =Inputs!$B$8 -> Real $2026 | D105: $Million | E105: =SUM(E96:E103) -> 0 | F105: =SUM(F96:F103) -> 0 | G105: =SUM(G96:G103) -> 0 | H105: =SUM(H96:H103) -> 0 | I105: =SUM(I96:I103) -> 0 | J105: 731196.2938 | K105: 3312622.072 | L105: 7520786.184 | M105: 9237400.912 | N105: 7965295.167 | O105: =SUM(J105:N105) -> 28767300.63 | P105: =SUM(E105:N105) -> 28767300.63
A107: =IF(SUM(E107:N107)=0,0,1) -> 0 | B107: Check - Opex (incl DRC) | I107: =IF(ROUND(I105/10^6-E$20,3)=0,0,1) -> 0 | J107: 0 | K107: 0 | L107: 0 | M107: 0 | N107: 0
B109: 7.1 Regulatory requirements/contractual arrangement costs (real $, Jun 2026) | E109: =E$65 -> Pre-period (EnergyCo funded costs) | J109: =J$65 -> 2026-31 regulatory control period (excluding IPFs) | O109: =K$5 -> Total | P109: =L$5 -> Total
E110: =LEFT(F110,2)&RIGHT(F110,2)-1 -> 2022 | F110: =LEFT(G110,2)&RIGHT(G110,2)-1 -> 2023 | G110: =LEFT(H110,2)&RIGHT(H110,2)-1 -> 2024 | H110: =LEFT(I110,2)&RIGHT(I110,2)-1 -> 2025 | I110: =E$6 -> 2026 | J110: 2027 | K110: 2028 | L110: 2029 | M110: 2030 | N110: 2031 | O110: Next period | P110: All years
B112: Costs
B113: Opex - Strategic Benefits Payments | C113: =Inputs!$B$8 -> Real $2026 | D113: $Dollars | J113: =F11*10^6 -> 0 | K113: =G11*10^6 -> 68233.67323 | L113: =H11*10^6 -> 204707.4156 | M113: =I11*10^6 -> 204707.4156 | N113: =J11*10^6 -> 204707.4156 | O113: =SUM(J113:N113) -> 682355.9201 | P113: =SUM(E113:N113) -> 682355.9201
B114: Opex - Operations - Commercial | C114: =Inputs!$B$8 -> Real $2026 | D114: $Dollars | J114: =Calculations!F61+Calculations!F$63*(Calculations!F61/SUM(Calculations!F$61:F$62)) -> 0 | K114: =Calculations!G61+Calculations!G$63*(Calculations!G61/SUM(Calculations!G$61:G$62)) -> 160599.5118 | L114: =Calculations!H61+Calculations!H$63*(Calculations!H61/SUM(Calculations!H$61:H$62)) -> 2367706.821 | M114: =Calculations!I61+Calculations!I$63*(Calculations!I61/SUM(Calculations!I$61:I$62)) -> 2374805.457 | N114: =Calculations!J61+Calculations!J$63*(Calculations!J61/SUM(Calculations!J$61:J$62)) -> 2381930.143 | O114: =SUM(J114:N114) -> 7285041.933 | P114: =SUM(E114:N114) -> 7285041.933
B115: Opex - Operations - Regulatory | C115: =Inputs!$B$8 -> Real $2026 | D115: $Dollars | J115: =Calculations!F62+Calculations!F$63*(Calculations!F62/SUM(Calculations!F$61:F$62)) -> 505174.9021 | K115: =Calculations!G62+Calculations!G$63*(Calculations!G62/SUM(Calculations!G$61:G$62)) -> 506695.1822 | L115: =Calculations!H62+Calculations!H$63*(Calculations!H62/SUM(Calculations!H$61:H$62)) -> 508554.7208 | M115: =Calculations!I62+Calculations!I$63*(Calculations!I62/SUM(Calculations!I$61:I$62)) -> 1942280.209 | N115: =Calculations!J62+Calculations!J$63*(Calculations!J62/SUM(Calculations!J$61:J$62)) -> 1334391.719 | O115: =SUM(J115:N115) -> 4797096.733 | P115: =SUM(E115:N115) -> 4797096.733
B116: Opex - Vegetation management | C116: =Inputs!$B$8 -> Real $2026 | D116: $Dollars | J116: =F13*10^6 -> 140358.6 | K116: =G13*10^6 -> 140358.6 | L116: =H13*10^6 -> 140358.6 | M116: =I13*10^6 -> 140358.6 | N116: =J13*10^6 -> 140358.6 | O116: =SUM(J116:N116) -> 701793 | P116: =SUM(E116:N116) -> 701793
B117: Opex - Insurance | C117: =Inputs!$B$8 -> Real $2026 | D117: $Dollars | J117: =F12*10^6 -> 0 | K117: =G12*10^6 -> 315270.521 | L117: =H12*10^6 -> 315270.521 | M117: =I12*10^6 -> 372777.3835 | N117: =J12*10^6 -> 315270.521 | O117: =SUM(J117:N117) -> 1318588.946 | P117: =SUM(E117:N117) -> 1318588.946
B119: Total operating costs | C119: =Inputs!$B$8 -> Real $2026 | D119: $Dollars | E119: =SUM(E111:E117) -> 0 | F119: =SUM(F111:F117) -> 0 | G119: =SUM(G111:G117) -> 0 | H119: =SUM(H111:H117) -> 0 | I119: =SUM(I111:I117) -> 0 | J119: 645533.5021 | K119: 1191157.488 | L119: 3536598.078 | M119: 5034929.064 | N119: 4376658.399 | O119: =SUM(J119:N119) -> 14784876.53 | P119: =SUM(E119:N119) -> 14784876.53
B121: End
